Cogmind - Beta 16 @@@ ROGUE MODE // 2025.11.23 @ 20:10:03 Player: C0-2MO Result: Escaped! Performance ------------- Evolutions (9) 4500 Regions Visited (37) 7400 Robots Destroyed (509) 2545 Value Destroyed (30318) 30318 Prototype IDs (54) 1080 Alien Tech Used (2) 400 Bonus (24331) 24331 TOTAL SCORE: 70574 Bonus ------- Triggered High Security 500 Triggered Max Security 1000 High Alert Combat Kills 8751 Follower Combat Kills 2573 Entered Garrisons 1600 Used RIF Installer 4000 Network Hubs Disabled 200 Aligned with FarCom 300 Met R17 at Cetus 500 Met R17 at Research 2000 Win 3000 Friendly Fire -93 Cogmind --------- Core Integrity 1258/1600 Matter 142/300 Energy 203/1425 System Corruption 15% Temperature Cool (11) Movement Treading (400) Ox3 Location To Epsilon Eridani Parts ------- > --- POWER (4) -------- Cooled Fission Core (fused) Cooled Fission Core Reinforced Antimatter Reactor Matter Drive > --- PROPULSION (6) --- Medium Treads Medium Treads > --- UTILITY (12) ----- Advanced Cryofiber Web Advanced Heat Sink Advanced Heat Sink Huge Storage Unit Experimental Energy Well Quantum Capacitor Graphene Brace Advanced Force Field Relay Coupler [NC] (41) > --- WEAPON (3) ------- Compact HERF Cannon Heavy Shock Bomb Launcher Shock Maul > --- INVENTORY (25) --- Experimental Coolant Injector Experimental Coolant Injector Quantum Capacitor Advanced Point Defense System Relay Coupler [NC] (39) Transdimensional Reconstructor Compact HERF Cannon Heavy Gauss Cannon Improved Remote Datajack Peak State ------------ > --- POWER ------------ Enhanced Fission Core Cooled Fission Core Cooled Fission Core Quantum Reactor > --- PROPULSION ------- Improved Heavy Treads Heavy Siege Treads Advanced Heavy Treads > --- UTILITY ---------- Advanced Cryofiber Web Experimental Cooling System Experimental Cooling System Advanced Coolant Injector Huge Storage Unit Quantum Capacitor Graphene Brace Advanced Force Field Mini Drone Bay > --- WEAPON ----------- Compact HERF Cannon Enhanced Nova Cannon Shock Maul > --- INVENTORY -------- Cooled Fission Core Cooled Fission Core Heavy Treads Heavy Treads Experimental Energy Well Makeshift Trap Scanner Advanced Terrain Scanner Energy Filter Advanced Particle Charger Quantum Capacitor Quantum Capacitor Advanced Force Field Advanced Point Defense System Relay Coupler [NC] Relay Coupler [NC] Transdimensional Reconstructor High-powered Transdimensional Reconstructor Compact HERF Cannon Compact HERF Cannon Enhanced Nova Cannon Improved Remote Datajack [Rating: 180] Favorites ----------- Power Cooled Fission Core Engine Reinforced Deuterium Engine Power Core Cooled Fission Core Reactor Particle Reactor Propulsion Improved Heavy Treads Treads Improved Heavy Treads Utility Advanced Targeting Computer Device Experimental Cooling System Storage Huge Storage Unit Processor Advanced Targeting Computer Hackware Hacking Suite Protection Heavy Reflective Plating Weapon Enhanced Nova Cannon Energy Gun Heavy EM Shotgun Energy Cannon Enhanced Nova Cannon Ballistic Gun Advanced KE Penetrator Launcher EMP Blaster Special Weapon Improved Remote Datajack Impact Weapon Shock Maul Slashing Weapon Chainsword Special Melee Weapon Datajack Build | -11 -10 -10 -10 -9 -8 -8 -8 -8 -7 -7 -7 -7 -6 -6 -6 -6 -6 -6 -6 -6 -6 -5 -5 -5 -5 -4 -4 -4 -4 -4 -4 -3 -3 -3 -2 -2 -1 ------- Run | Yrd Mat Min Exi Min Mat Gar Mat Gar Fac Gar Fac Gar Fac Gar Fac Gar Fac Ext Cet Arc Hub Fac Was Fac Gar Fac Was Fac Upp Upp War Pro Res Gar Res Qua Acc Slots Evolved 18 | . . . . . 4 . . . 2 . . . 2 . . . . . . . . 2 . . . 2 . . . . . . 2 . 2 . 2 Power 3 | . . . . . . . . . . . . . 1 . . . . . . . . . . . . . . . . . . . 1 . 1 . . Propulsion 4 | . . . . . 1 . . . 1 . . . . . . . . . . . . 2 . . . . . . . . . . . . . . . Utility 10 | . . . . . 2 . . . 1 . . . 1 . . . . . . . . . . . . 2 . . . . . . 1 . 1 . 2 Weapon 1 | . . . . . 1 . . . . . . . . . . . . . . . . . . . . . . . . . . . . . . . . Parts Attached 326 | 5 13 2 2 1 24 9 14 4 10 7 6 6 12 10 7 9 11 2 10 9 6 5 6 5 25 17 4 25 1 1 . 2 21 1 8 13 13 Power 44 | . 4 1 . . 3 1 1 . 1 . . 1 3 2 1 1 . 1 . 2 1 . . 2 4 1 1 5 . . . 1 1 . 2 1 3 Engine 14 | . 4 1 . . 1 . 1 . . . . . 2 2 . 1 . . . . . . . 1 1 . . . . . . . . . . . . Core 18 | . . . . . 2 1 . . 1 . . . 1 . 1 . . 1 . 2 1 . . 1 1 . . 3 . . . . 1 . 1 . 1 Reactor 12 | . . . . . . . . . . . . 1 . . . . . . . . . . . . 2 1 1 2 . . . 1 . . 1 1 2 Propulsion 55 | 2 2 . . . 9 2 4 . 4 2 3 2 1 3 . 2 . . 1 3 . 1 3 . 3 . . 1 1 . . . 1 . 1 2 2 Treads 55 | 2 2 . . . 9 2 4 . 4 2 3 2 1 3 . 2 . . 1 3 . 1 3 . 3 . . 1 1 . . . 1 . 1 2 2 Leg . | . . . . . . . . . . . . . . . . . . . . . . . . . . . . . . . . . . . . . . Wheel . | . . . . . . . . . . . . . . . . . . . . . . . . . . . . . . . . . . . . . . Hover . | . . . . . . . . . . . . . . . . . . . . . . . . . . . . . . . . . . . . . . Flight . | . . . . . . . . . . . . . . . . . . . . . . . . . . . . . . . . . . . . . . Utility 139 | 1 3 1 . . 6 3 2 2 2 2 2 1 4 5 2 3 3 . 4 4 2 3 2 2 9 13 2 17 . 1 . 1 16 1 5 9 6 Device 68 | 1 1 . . . 2 2 . 1 2 1 1 . 3 2 1 1 1 . . 4 . 1 1 1 3 3 1 7 . 1 . . 9 . 5 9 4 Storage 12 | . 2 . . . . . . . . . . . . 1 1 . 1 . . . . 1 . . 1 1 . . . . . . 2 1 . . 1 Processor 10 | . . . . . 1 1 . . . . . . . . . . . . . . . . . . 3 1 . 2 . . . . 2 . . . . Hackware 34 | . . . . . 1 . 2 1 . 1 1 1 1 2 . 2 1 . . . 2 . . . 2 7 . 8 . . . 1 . . . . 1 Protection 15 | . . 1 . . 2 . . . . . . . . . . . . . 4 . . 1 1 1 . 1 1 . . . . . 3 . . . . Artifact . | . . . . . . . . . . . . . . . . . . . . . . . . . . . . . . . . . . . . . . Weapon 88 | 2 4 . 2 1 6 3 7 2 3 3 1 2 4 . 4 3 8 1 5 . 3 1 1 1 9 3 1 2 . . . . 3 . . 1 2 Energy Gun 40 | 2 3 . . . 5 2 5 2 3 2 . . 2 . . 3 3 . . . . . . 1 5 1 . 1 . . . . . . . . . Energy Cannon 19 | . . . . 1 . . . . . . 1 1 2 . 3 . 2 . . . . . . . 3 . 1 1 . . . . 3 . . 1 . Ballistic Gun 14 | . . . . . . . 1 . . . . 1 . . . . 2 1 5 . 1 1 1 . 1 . . . . . . . . . . . . Ballistic Cannon . | . . . . . . . . . . . . . . . . . . . . . . . . . . . . . . . . . . . . . . Launcher 2 | . . . . . 1 . . . . . . . . . . . . . . . . . . . . . . . . . . . . . . . 1 Special Weapon 7 | . . . . . . . . . . 1 . . . . 1 . 1 . . . 2 . . . . 1 . . . . . . . . . . 1 Impact Weapon 2 | . 1 . . . . . . . . . . . . . . . . . . . . . . . . 1 . . . . . . . . . . . Slashing Weapon 3 | . . . 1 . . 1 1 . . . . . . . . . . . . . . . . . . . . . . . . . . . . . . Piercing Weapon . | . . . . . . . . . . . . . . . . . . . . . . . . . . . . . . . . . . . . . . Special Melee Weapon 1 | . . . 1 . . . . . . . . . . . . . . . . . . . . . . . . . . . . . . . . . . Unidentified Prototypes 28 | . 1 . . . . . 4 . 2 . . . 2 1 . . . . 3 . 1 . . . . 3 1 3 . . . . 3 . 1 2 1 Corrupted Parts 7 | . . . . . . . . . . . . . . . . . . . 2 . . . . . 1 . . . . . . 1 . . . . 3 System Corruption 24 | . . . . . . . . . . . . . . . . . . . 10 . . . . . 6 . . . . . . 1 . . . . 7 Parts Lost 84 | . 1 . . . 4 5 . 1 1 2 . 5 5 4 1 4 . 4 4 1 4 . 2 1 6 2 . . 5 . . . 2 . . 8 12 Power 15 | . 1 . . . 1 . . . 1 . . 1 2 1 . . . 1 . . 1 . . . . 1 . . . . . . . . . 3 2 Propulsion 22 | . . . . . . 3 . . . . . 1 2 . . 2 . . 2 . 1 . 1 . 3 . . . 2 . . . . . . 2 3 Utility 19 | . . . . . . . . 1 . . . . . . . 1 . . . 1 1 . 1 . 1 1 . . 2 . . . 1 . . 3 6 Weapon 28 | . . . . . 3 2 . . . 2 . 3 1 3 1 1 . 3 2 . 1 . . 1 2 . . . 1 . . . 1 . . . 1 Highest Loss Streak 5 | . 1 . . . 1 3 . 1 1 2 . 3 5 2 1 2 . 3 3 1 4 . 1 1 3 2 . . 5 . . . 2 . . 4 5 To Critical Strikes 2 | . . . . . . . . . . . . . 1 . . . . . . . . . . . 1 . . . . . . . . . . . . Average Backups 17 | . 7 14 14 14 17 18 19 19 19 19 20 18 19 17 17 15 24 21 16 22 24 4 3 3 10 28 21 17 16 14 14 14 17 18 20 20 11 Power 1 | . . 1 2 2 1 1 1 1 . 1 1 . . . . . . . . . . . . . . 1 1 2 3 3 3 3 3 3 2 1 . Propulsion 1 | . . 2 2 2 1 3 3 4 3 3 3 2 2 1 2 1 . . . . 2 . . . . 1 1 1 2 1 1 1 1 2 2 1 . Utility 8 | . 3 5 6 6 8 9 7 4 4 5 6 6 9 6 5 5 10 9 7 9 8 2 2 1 6 19 14 8 7 6 6 6 8 10 12 11 6 Weapon 5 | . 3 4 4 3 4 3 6 8 8 7 7 6 6 6 7 6 11 9 7 10 9 1 . 1 2 5 5 4 4 3 3 3 3 3 3 2 3 Tool/Special . | . . . . . . . . . . . . . . . . . . . . . . . . . . . . . . . . . . . . . . Unused Backups 62 | . 1 . . . 5 4 4 . 2 2 . 3 1 . . . 3 . . 2 9 . . . 3 2 5 2 . . . . 4 1 . 2 7 Power 5 | . . . . . 2 . . . . . . 1 . . . . . . . . . . . . . 1 . 1 . . . . . . . . . Propulsion 5 | . . . . . . . . . 1 . . . . . . . . . . . 3 . . . . . . . . . . . 1 . . . . Utility 38 | . . . . . 3 4 4 . . 2 . 2 . . . . 2 . . 2 4 . . . 1 1 4 . . . . . 2 1 . 2 4 Weapon 13 | . 1 . . . . . . . 1 . . . 1 . . . 1 . . . 2 . . . 2 . 1 1 . . . . 1 . . . 2 Tool/Special 1 | . . . . . . . . . . . . . . . . . . . . . . . . . . . . . . . . . . . . . 1 Average Slot Usage (%) 82 | . 91 100 100 100 91 99 100 98 98 99 99 96 87 82 84 82 85 85 73 86 80 10 23 32 56 69 70 75 77 78 78 78 75 76 77 80 78 Engine 3 | . 6 14 14 14 6 4 . . . . . . 4 4 6 8 12 12 5 4 . . . 1 2 . . . . . . . . . . . . Core 4 | . . . . . 2 4 9 9 6 7 7 1 . 6 6 3 . . 5 6 5 . . . 1 . . . 10 10 10 9 8 9 12 12 8 Reactor 2 | . . . . . . . . . . . . 5 4 . . . . . . . . . . . 4 9 10 9 . . . . 4 4 4 3 6 Treads 19 | . 28 28 28 28 26 26 27 27 29 30 29 27 18 14 13 12 12 13 6 18 18 2 10 17 13 15 15 15 14 15 15 15 13 14 12 12 11 Device 13 | . 14 2 . . 3 9 . 5 14 14 7 6 11 5 6 10 7 6 3 7 2 2 4 8 6 9 7 23 28 31 31 27 22 23 25 31 30 Storage 6 | . 13 14 14 14 9 9 9 9 7 7 7 7 6 6 6 6 6 6 5 6 5 . . . 2 5 5 5 5 5 5 5 4 4 4 4 6 Processor 6 | . . . . . 1 14 18 18 15 15 15 15 13 13 13 13 13 13 13 13 12 . . . 6 . 1 4 2 . . . . . . . . Hackware 4 | . . . . . 6 3 8 3 . . 6 7 7 13 12 6 11 12 6 1 7 . . . 6 9 10 1 . . . 4 . . . . 3 Protection 2 | . . 11 14 14 9 . . . . . . . . . . . . . 8 7 7 1 1 . . 2 3 . . . . . 3 4 4 1 . Energy Gun 9 | . 26 28 . 26 24 22 24 21 23 16 17 16 7 4 1 5 4 1 . . . . . . 5 7 . . . 3 5 5 . . . . . Energy Cannon 4 | . . . . . . . . . . . . 6 8 7 10 8 10 6 2 . . . . . 1 1 5 8 5 5 5 5 12 9 8 8 7 Impact Weapon 1 | . 1 . . . . . . . . . . . . . . . . . . . . . . . . 2 5 2 5 5 5 1 . 4 4 4 . Slashing Weapon 1 | . . . 13 . 1 4 . 3 . 5 4 . 1 2 1 1 1 . . 3 . 3 1 . . . . . . . . . . . . . . Peak Build Rating 180 | 5 12 13 14 18 42 42 40 42 55 55 55 59 76 78 82 85 85 82 90 91 96 22 72 57 102 126 130 143 137 137 136 136 160 160 175 180 177 Average Rating 84 | 3 11 12 12 14 31 33 34 37 45 54 53 55 68 69 75 74 79 78 74 85 81 9 34 49 70 114 125 134 134 136 136 134 153 159 172 173 159 On Entrance 73 | . 5 12 13 13 14 36 30 38 38 54 55 52 59 57 71 82 71 82 80 90 91 2 22 43 43 102 126 125 134 137 136 136 136 160 159 173 126 Avg Prop Armor Cover (%) 35 | 28 28 . . . . . . . . . . . . . . . . . 40 . . 29 38 41 20 . . . . . . . . . . . . Naked Turns 57 | . . . . . . . . . . . . . . . . . . . . . 28 11 18 . . . . . . . . . . . . . . Heaviest Build 208 | 3 50 34 31 34 73 68 57 63 62 62 63 73 91 85 87 94 136 131 137 138 126 10 22 14 184 204 182 177 147 148 148 152 196 190 207 207 208 Greatest Support 225 | 20 40 40 40 40 66 62 62 62 112 112 112 118 118 150 150 150 150 150 150 126 126 12 28 210 225 225 225 225 220 220 220 220 220 215 215 215 210 Greatest Overweight (x) 8 | . 1 . . . 1 1 . 1 . . . . . . . 1 . . 1 1 . . . 2 8 . . . . . . . 1 . 1 1 3 Average Overweight (x) . | . . . . . . . . . . . . . . . . . . . . . . . . . . . . . . . . . . . . . . Largest Inventory Capacity 30 | 5 20 15 15 15 20 20 20 20 20 20 20 20 20 20 20 20 25 25 25 25 25 15 5 5 30 30 25 25 25 25 25 25 25 25 25 25 25 Average Capacity 21 | 5 15 15 15 15 18 20 20 20 20 20 20 20 20 20 20 20 24 25 22 25 23 5 5 5 15 29 25 25 25 25 25 25 25 25 25 25 25 Most Carried 30 | 1 13 15 15 15 20 20 20 20 20 20 20 20 20 20 20 20 25 24 22 25 25 5 5 5 30 30 25 25 25 20 18 21 25 25 25 25 23 Average Carried 19 | . 7 14 14 14 17 19 19 19 19 19 19 18 19 18 19 16 24 21 16 22 23 4 2 3 11 29 23 21 21 18 18 18 23 24 24 24 12 Final Capacity 30 | 5 15 15 15 15 20 20 20 20 20 20 20 20 20 20 20 20 25 25 25 25 5 5 5 5 30 25 25 25 25 25 25 25 25 25 25 25 25 Final Carried 30 | 1 13 15 15 15 19 20 20 19 20 20 20 20 20 18 20 19 24 18 22 25 5 5 3 3 30 25 23 25 18 18 18 21 25 24 25 23 13 Class Distribution -------------------- 25% | Mutant 10% | Scavenger-Tank 9% | Scavenger-Mutant 6% | Bothacker-Mutant 6% | Generator-Mutant 5% | Bothacker-Gunner 4% | Scientist-Gunner 4% | Scavenger-Skirmisher 4% | Gunner 3% | Botlord-Tank 3% | Commander-Mutant Dominant Class ---------------- Mutant | -10/Materials Mutant | -10/Mines Derelict-Mutant | -10/Exiles Mutant | -9/Mines Scavenger-Skirmisher | -8/Materials Scavenger-Mutant | -8/Garrison Scientist-Gunner | -8/Materials Scientist-Gunner | -8/Garrison Gunner | -7/Factory Mutant | -7/Garrison Mutant | -7/Factory Bothacker-Gunner | -7/Garrison Bothacker-Gunner | -6/Factory Bothacker-Mutant | -6/Garrison Bothacker-Gunner | -6/Factory Bothacker-Tank | -6/Garrison Botlord-Tank | -6/Factory Botlord-Gunner | -6/Extension Bothacker-Tank | -6/Cetus Bothacker-Mutant | -6/Archives Scavenger-Tank | -6/Hub_04(d) Mutant | -5/Factory Mutant | -5/Waste Mutant | -5/Factory Scavenger-Mutant | -5/Garrison Botlord-Tank | -4/Factory Scavenger-Mutant | -4/Waste Mutant | -4/Factory Mutant | -4/Upper Caves Mutant | -4/Upper Caves Mutant | -4/Warlord Scavenger-Tank | -3/Proximity Caves Scavenger-Tank | -3/Research Commander-Mutant | -3/Garrison Generator-Mutant | -2/Research Generator-Mutant | -2/Quarantine Generator-Tank | -1/Access Resources | -11 -10 -10 -10 -9 -8 -8 -8 -8 -7 -7 -7 -7 -6 -6 -6 -6 -6 -6 -6 -6 -6 -5 -5 -5 -5 -4 -4 -4 -4 -4 -4 -3 -3 -3 -2 -2 -1 ----------- Run | Yrd Mat Min Exi Min Mat Gar Mat Gar Fac Gar Fac Gar Fac Gar Fac Gar Fac Ext Cet Arc Hub Fac Was Fac Gar Fac Was Fac Upp Upp War Pro Res Gar Res Qua Acc Matter Collected 8691 | 219 192 20 64 56 398 210 262 305 175 184 133 322 240 386 156 308 256 410 239 397 137 126 255 88 578 289 162 723 148 71 . 96 434 20 196 241 195 Remotely . | . . . . . . . . . . . . . . . . . . . . . . . . . . . . . . . . . . . . . . Salvage Created 31812 | 75 1190 . . 89 1696 1037 985 1108 271 594 630 1084 934 1249 234 859 550 454 618 519 157 137 970 88 1875 946 205 1899 184 197 . 105 1246 . 1840 4819 2968 Parts 1198 | 6 53 . . 5 83 44 59 45 10 26 28 44 44 42 12 39 28 21 28 37 13 4 27 5 42 25 6 76 11 17 . 4 43 . 54 121 96 Haulers Intercepted 11 | . 2 . . . 1 . 2 . 1 . 1 . . . . . . . . . . 1 . . . . . 1 . . . . . . 2 . . Recyclers Shooed 4 | . 1 . . . 1 . 2 . . . . . . . . . . . . . . . . . . . . . . . . . . . . . . Parts Field Recycled . | . . . . . . . . . . . . . . . . . . . . . . . . . . . . . . . . . . . . . . Retrieved Matter . | . . . . . . . . . . . . . . . . . . . . . . . . . . . . . . . . . . . . . . Parts Self-Destructed 21 | . . . . . . . . . . . . . . . . . . . . . . . . . . . . . 7 14 . . . . . . . Prevented 13 | . . . . . . . . . . . . . . . . . . . . . . . . . . . . . 3 6 . 4 . . . . . Parts Restored . | . . . . . . . . . . . . . . . . . . . . . . . . . . . . . . . . . . . . . . Kills | -11 -10 -10 -10 -9 -8 -8 -8 -8 -7 -7 -7 -7 -6 -6 -6 -6 -6 -6 -6 -6 -6 -5 -5 -5 -5 -4 -4 -4 -4 -4 -4 -3 -3 -3 -2 -2 -1 ------- Run | Yrd Mat Min Exi Min Mat Gar Mat Gar Fac Gar Fac Gar Fac Gar Fac Gar Fac Ext Cet Arc Hub Fac Was Fac Gar Fac Was Fac Upp Upp War Pro Res Gar Res Qua Acc Combat Hostiles Destroyed 430 | . 20 . . 2 32 20 16 21 3 11 8 17 16 11 5 25 8 9 8 4 2 . 3 5 12 11 1 26 2 6 . 1 14 . 17 60 34 Melee 12 | . . . . . 2 . . . . . 1 . . . . 4 . 1 . . . . . 4 . . . . . . . . . . . . . Guns 148 | . 15 . . . 26 19 12 14 3 5 3 9 2 2 1 4 1 4 4 4 2 . 3 1 4 4 . . . 5 . . 1 . . . . Cannons 146 | . . . . . 2 . 2 7 . . 1 2 9 6 3 12 4 3 1 . . . . . 4 5 1 21 2 . . . 3 . 10 42 6 AOE 36 | . 4 . . 2 1 . 2 . . 5 2 3 2 2 . 4 3 . . . . . . . . . . . . . . . . . . 1 5 Classes Destroyed 24 | 2 5 . . 1 6 1 1 . . 1 . . 1 . . 1 . 1 . . . . 1 . . . . . . . . . 1 . . 2 . Worker 9 | . 1 . . . 2 . 1 . . . 1 . . . . . . . . . 2 . . . . 2 . . . . . . . . . . . Builder 13 | . . . . 1 . . . . . . 4 . . . . . . . . . . 1 . 1 . . . 2 . . . . . . . . 4 Tunneler 2 | 1 . . . . . . . . . . . . . . . . . . . . . . . . . . . 1 . . . . . . . . . Hauler 11 | . 2 . . . 1 . 2 . 1 . 1 . . . . . . . . . . 1 . . . . . 1 . . . . . . 2 . . Recycler 8 | 1 3 . . . . . 1 . . . . . . . . . . . . . . . . . . 1 . 1 . . . . . . 1 . . Mechanic 2 | . . . . . . . 1 . . . . . . . . . . 1 . . . . . . . . . . . . . . . . . . . Operator 9 | . . . . . 2 . . . . . . . . . . . . 1 . 6 . . . . . . . . . . . . . . . . . Watcher 24 | . 3 . . . 1 1 3 . 1 . 2 2 1 . . . 2 . 2 . . . . . . 1 . 3 . . . . . . . 1 1 Swarmer 58 | . 3 . . . 4 4 5 . . 3 . . . 4 2 12 . 4 . . . . . 4 . . . 8 . 5 . . . . . . . Cutter 2 | . . . . . . . . . . . . . . . . 2 . . . . . . . . . . . . . . . . . . . . . Saboteur 6 | . . . . . . . . . . . . . 1 . . 2 . . . . . . . . . . . . . . . . . . . . 3 Grunt 179 | . 17 . . 2 16 6 7 15 . 3 6 6 6 7 . 5 3 3 . . . . . 1 6 5 . 7 . 1 . . 6 . 8 23 20 Brawler 8 | . . . . . 1 . . 1 . . . . . . . . 1 . . . . . . . . . . . . . . . 1 . . . 4 Duelist 15 | . . . . . 1 . 1 1 . . . 1 . . . . 1 . . . . . . . . . . . . . . . . . . 7 3 Protector 3 | . . . . . . . . . . . . . . . . . . . . . . . . . . . . . . . . . 1 . . 1 1 Sentry 57 | . . . . . 7 8 3 2 2 3 . 6 1 . 1 . 1 1 . 4 1 . . . 2 . . 2 1 . . 1 2 . 3 4 2 Specialist 4 | . . . . . 2 1 . . . . . . . . . . . . . . . . . . 1 . . . . . . . . . . . . Hunter 23 | . . . . . . . . . . 2 . 1 4 . . . . . . . . . . . 1 1 . 1 . . . . 3 . 2 8 . Programmer 57 | . . . . . . 2 . 2 1 . 2 3 4 . 2 4 2 . . . 1 . . . 2 5 . 8 . . . . . . 3 15 1 Heavy 1 | . . . . . 1 . . . . . . . . . . . . . . . . . . . . . . . . . . . . . . . . Behemoth 4 | . . . . . . . . . . . . . . . . . . 1 . . . . . . . . . . 1 . . . 1 . 1 . . Compactor 4 | . . . . . . . . . . . . . . . . . . . . . . . 3 . . . 1 . . . . . . . . . . Cetus Guard 8 | . . . . . . . . . . . . . . . . . . . 8 . . . . . . . . . . . . . . . . . . Striker 1 | . . . . . . . . . . . . . . . . . . . . . . . . . . . . . . . . . . . . 1 . Executioner 1 | . . . . . . . . . . . . . . . . . . . . . . . . . . . . . . . . . . . . 1 . Best Kill Streak 11 | 2 4 . . 2 5 4 4 5 1 6 4 3 8 4 2 5 2 5 5 3 3 1 2 3 3 3 1 7 1 4 . 1 3 . 5 7 11 Combat Bots Only 9 | . 4 . . 2 5 4 4 5 1 6 2 3 8 4 2 5 2 4 4 1 1 . 2 3 3 3 1 5 1 4 . 1 3 . 5 9 9 Max Kills in Single Turn 3 | 1 3 . . 2 2 2 3 1 1 2 2 1 2 2 1 2 2 2 1 1 2 1 1 1 1 1 1 1 1 1 . 1 1 . 1 1 2 Gunslinging 1 | . 1 . . . . 1 1 . . 1 . . . . . . . . . . . . . . . . . . . . . . . . . . . Exploded 2 | . 2 . . 2 1 . 1 . . 2 1 1 2 2 . 2 2 . . . . . . . . . . . . . . . . . . 1 1 Melee 1 | . . . . . 1 . . . . . 1 . . . . 1 . 1 . . . . . 1 . . . . . . . . . . . . . Uniques/NPCs Destroyed . | . . . . . . . . . . . . . . . . . . . . . . . . . . . . . . . . . . . . . . Combat | -11 -10 -10 -10 -9 -8 -8 -8 -8 -7 -7 -7 -7 -6 -6 -6 -6 -6 -6 -6 -6 -6 -5 -5 -5 -5 -4 -4 -4 -4 -4 -4 -3 -3 -3 -2 -2 -1 -------- Run | Yrd Mat Min Exi Min Mat Gar Mat Gar Fac Gar Fac Gar Fac Gar Fac Gar Fac Ext Cet Arc Hub Fac Was Fac Gar Fac Was Fac Upp Upp War Pro Res Gar Res Qua Acc Hostile Shots Fired 2503 | . 67 . . 1 174 65 33 38 33 131 53 147 155 85 36 81 45 79 51 17 142 12 2 47 76 65 . 129 35 30 . 11 61 . 64 321 217 Missed 787 | . 24 . . 1 51 20 11 9 18 59 15 50 33 24 13 18 14 29 13 9 43 2 . 5 17 21 . 39 6 12 . 3 25 . 8 126 69 Hits 1716 | . 43 . . . 123 45 22 29 15 72 38 97 122 61 23 63 31 50 38 8 99 10 2 42 59 44 . 90 29 18 . 8 36 . 56 195 148 Melee 12 | . . . . . . . . . . . . . . . . 4 . . . . . . 2 . . . . . . . . . . . . 6 . Projectile 1704 | . 43 . . . 123 45 22 29 15 72 38 97 122 61 23 59 31 50 38 8 99 10 . 42 59 44 . 90 29 18 . 8 36 . 56 189 148 AOE 7 | . . . . . . . . . . . . . . . . 2 . . . . . . . . . . . 2 . . . 3 . . . . . Critical Strikes 95 | . . . . . 8 . 2 3 . 3 3 2 1 4 1 3 . 3 6 1 6 . 1 1 6 5 . 5 4 . . . 2 . 4 12 9 Actively Blocked 27 | . . . . . . . . . . . . . . . . . . . 2 . . . . . . . . . . . . . . . 4 12 9 Part Disruptions 4 | . . . . . . . . . . . . . . . . . . . . . 1 . . . . . . 1 . . . . . . . 2 . Damage Taken 27157 | . 530 . . . 1866 649 272 476 144 769 619 1156 1530 1156 223 937 414 896 1058 188 1510 169 105 663 1205 1016 . 1778 929 196 . 245 516 . 632 2978 2332 Core 2753 | . 75 . . . 214 79 111 116 16 79 77 81 123 222 11 50 53 69 74 . 180 20 50 73 43 199 . 123 101 14 . 16 16 . 17 256 195 Absorbed by Shields 4390 | . . . . . . . . 12 . . . 97 . 27 . 252 129 . . 6 . . . . 41 37 . 126 . 59 . 73 156 . 631 1683 1061 Reduced by Siege Mode 566 | . . . . . . . . . . . . . 48 . . . . . 16 . . . . 15 93 . . 19 193 . . . . . 46 32 104 Ignored by Resistances 336 | . . . . . . . . . . . . . . . . . . . . . . . . . . . . . . . . . 16 . 183 137 . Regen/Repaired (Parts) 2072 | . . . . . . . 55 . . . 63 . 71 . . . 416 44 . . . . . . . 87 . 365 . . . . 716 . 255 . . Core Remaining (%) 63 | 100 . . . 70 . . . 5 . . . 63 . . . . . . . . 8 . . . 81 . . . . . . 60 . 98 . 74 78 Volleys Fired 1595 | 5 49 . . 1 76 47 31 46 11 24 22 42 32 29 11 50 27 42 17 14 10 . 72 9 132 60 11 138 34 19 1 16 98 . 91 237 91 Largest 3 | 2 2 . . 1 3 3 3 3 3 3 3 3 3 3 2 3 3 3 3 3 3 . 2 1 3 3 1 1 1 1 1 1 1 . 1 2 1 Hottest 269 | 80 90 . . 120 213 207 195 165 165 150 165 182 187 192 144 185 185 194 125 105 105 . 70 65 221 269 120 120 120 60 120 60 120 . 120 214 120 Shots Fired 2388 | 10 95 . . 1 180 123 82 92 33 50 62 112 81 53 19 105 55 69 39 42 26 . 74 11 149 83 11 141 34 20 1 16 98 . 91 238 92 Gun 1313 | 10 95 . . . 172 117 79 68 33 40 60 87 30 18 3 36 19 41 26 42 24 . 74 11 125 50 . . . 20 . 13 20 . . . . Cannon 943 | . . . . 1 4 6 3 22 . . 2 23 46 25 13 57 31 11 8 . . . . . 24 22 2 134 34 . 1 . 78 . 91 238 67 Launcher 52 | . . . . . 4 . . 2 . 6 . . 5 . . 4 . 2 5 . . . . . . . . . . . . . . . . . 24 Special 80 | . . . . . . . . . . 4 . 2 . 10 3 8 5 15 . . 2 . . . . 11 9 7 . . . 3 . . . . 1 Kinetic 195 | . . . . . . . . . . . . . . . . . . 12 26 42 24 . 74 5 8 4 . . . . . . . . . . . Thermal 1110 | 10 . . . 1 160 123 19 53 24 . 36 15 46 5 6 46 18 14 8 . . . . . 103 60 2 65 30 . 1 . 31 . 44 162 28 Explosive . | . . . . . . . . . . . . . . . . . . . . . . . . . . . . . . . . . . . . . . Electromagnetic 1003 | . 95 . . . 20 . 63 39 9 46 26 95 35 38 10 51 32 28 5 . . . . 6 38 8 . 69 4 20 . 13 67 . 47 76 63 Robot Hit Streak 43 | 6 9 . . . 16 16 11 13 22 24 16 27 22 13 17 20 18 15 17 11 7 . 8 5 43 10 3 12 17 4 . 3 22 . 35 22 10 Robot Miss Streak 8 | 1 8 . . . 2 1 6 3 2 3 4 4 2 1 1 4 2 2 1 2 1 . 3 1 3 5 1 5 1 3 . 3 4 . 3 5 4 Penetration Max 2 | . . . . . . . . . . . . . . . . . . . 1 1 1 . 2 . 1 . . . . . . . . . . . . Secondary Targets 16 | . 2 . . . 4 1 4 . . 2 . 1 . . . . . 1 1 . . . . . . . . . . . . . . . . . . Max Gunslinging Chain 1 | . 1 . . . 1 1 1 . . 1 . 1 . . . . . 1 1 . . . . . . . . . . . . . . . . . . Capacitor 720 | . . . . . . . . . . . . . . . . . . . . . . . . . . 28 2 134 34 20 1 13 98 . 91 236 63 Shots Hit Robots 1751 | 7 78 . . . 123 102 53 50 23 40 56 96 59 68 17 69 42 54 33 37 17 8 58 8 127 55 7 79 29 9 . 8 52 . 66 164 57 Core Hits 876 | 3 45 . . 2 65 40 42 42 14 26 24 42 32 27 5 34 17 19 22 18 5 3 9 13 55 18 1 36 5 7 . 5 22 . 26 80 72 Critical Kills 14 | . . . . . . . . . . . . . . . . . . . 5 . 1 . 3 . . . . 1 . . . . . . . 4 . Critical Parts Destroyed 16 | . . . . . . . . . . . . . . . . . . . 2 3 2 . 4 2 1 1 . . . . . . . . . . 1 Critical Strikes 117 | . . . . . 10 6 . . 1 . 3 1 2 5 . 5 . . 8 3 3 . 28 2 20 9 . 1 . . . . 3 . 1 4 2 Burn 44 | . . . . . 9 6 . . 1 . 2 1 2 . . . . . . . . . . . 16 7 . . . . . . . . . . . Meltdown 6 | . . . . . . . . . . . . . . . . . . . 1 . . . . . . . . 1 . . . . . . . 4 . Destroy 44 | . . . . . . . . . . . . . . . . . . . 7 3 3 . 28 2 1 . . . . . . . . . . . . Corrupt 12 | . . . . . . . . . . . . . . 2 . 1 . . . . . . . . 3 1 . . . . . . 3 . 1 . 1 Smash 2 | . . . . . . . . . . . . . . . . . . . . . . . . . . 1 . . . . . . . . . . 1 Sever 9 | . . . . . 1 . . . . . 1 . . 3 . 4 . . . . . . . . . . . . . . . . . . . . . Melee Attacks 239 | . 3 . . . 8 51 1 19 . 18 13 . 9 31 1 14 . 2 . 7 3 11 . . . 8 . 22 . . . 1 . 2 7 2 6 Impact 51 | . 3 . . . . . . . . . . . . . . . . . . . . . . . . 8 . 22 . . . 1 . 2 7 2 6 Slashing 178 | . . . . . 8 44 . 17 . 18 13 . 9 31 1 14 . 2 . 7 3 11 . . . . . . . . . . . . . . . Piercing . | . . . . . . . . . . . . . . . . . . . . . . . . . . . . . . . . . . . . . . Sneak Attacks 27 | . 2 . . . 1 7 . . . . 2 . . . . . . . . 7 . 2 . . . 1 . 3 . . . . . . 2 . . Combat Hostiles . | . . . . . . . . . . . . . . . . . . . . . . . . . . . . . . . . . . . . . . Follow-up Attacks . | . . . . . . . . . . . . . . . . . . . . . . . . . . . . . . . . . . . . . . Damage Inflicted 61261 | 77 1739 1 . 157 3083 2240 1334 1959 536 980 1888 2415 2187 3092 445 2154 1231 1358 1436 1470 595 388 616 236 3067 1572 40 3949 1268 199 . 167 1789 . 3211 8209 6173 Guns 19959 | 77 1258 . . . 2408 1628 1013 1010 489 666 1096 1564 444 204 44 352 221 641 746 857 586 . 616 149 2370 737 . . . 199 . 167 417 . . . . Cannons 25667 | . . . . . 151 178 113 681 . . 52 422 1142 516 401 1242 689 303 228 . . . . . 589 660 40 3402 1268 . . . 1305 . 2864 7285 2136 Explosions 9511 | . 357 . . 153 302 . 164 268 . 314 392 429 601 152 . 152 315 321 462 . . . . . 108 . . 142 . . . . 67 . . 885 3927 Melee 5746 | . 124 . . . 186 434 . . . . 339 . . 2220 . 408 . 73 . 613 . 388 . . . 142 . 323 . . . . . . 347 39 110 Ramming 378 | . . 1 . 4 36 . 44 . 47 . 9 . . . . . 6 20 . . 9 . . 87 . 33 . 82 . . . . . . . . . Kinetic 3147 | . . . . . . . . . . . . . . . . . . 193 746 857 586 . 616 23 88 38 . . . . . . . . . . . Thermal 27136 | 77 357 . . 153 2437 1806 447 1278 285 131 978 731 1240 255 241 1065 785 620 228 . . . . . 2144 1139 40 1624 1197 . . . 309 . 1259 4907 1403 Explosive 811 | . . . . . . . . . . . . . . . . . . . . . . . . . . . . . . . . . . . . 811 . Electromagnetic 24043 | . 1258 . . . 424 . 843 681 204 849 562 1684 947 617 204 681 440 452 462 . . . . 126 835 220 . 1920 71 199 . 167 1480 . 1605 2452 4660 Impact 1085 | . 124 . . . . . . . . . . . . . . . . . . . . . . . . 142 . 323 . . . . . . 347 39 110 Slashing 4661 | . . . . . 186 434 . . . . 339 . . 2220 . 408 . 73 . 613 . 388 . . . . . . . . . . . . . . . Piercing . | . . . . . . . . . . . . . . . . . . . . . . . . . . . . . . . . . . . . . . Highest Corruption 27 | . 4 4 4 4 1 2 2 4 . . 2 3 2 2 2 4 5 7 17 17 3 . 27 27 16 1 10 14 14 14 14 1 . . 3 10 15 Average Corruption 6 | . 3 4 4 4 1 1 2 3 . . 1 2 1 2 2 3 4 5 14 12 2 . 13 18 13 1 9 11 14 14 14 1 . . 2 7 3 Corruption Purged 39 | . . . . . . . . . . . 2 . . . . . . . . 17 . . . 20 . . . . . . . . . . . . . Corruption Blocked . | . . . . . . . . . . . . . . . . . . . . . . . . . . . . . . . . . . . . . . Effects 585 | . 18 16 9 4 12 18 13 20 . . 5 21 . 5 7 16 24 29 22 9 . . 18 32 54 5 11 105 34 20 2 . . . 4 40 12 Message Errors 131 | . 5 8 4 1 5 5 3 3 . . 2 2 . 1 . 2 5 4 6 1 . . 4 8 8 . 2 25 7 3 1 . . . 2 10 4 Matter Fused 145 | . 4 4 3 2 1 2 5 5 . . . 5 . 3 3 4 9 9 3 1 . . 4 9 13 2 3 28 10 5 1 . . . 1 4 2 Heat Flow Errors 61 | . 2 1 2 . . 2 2 2 . . . 2 . . . 3 1 3 1 1 . . 1 5 4 2 2 13 3 2 . . . . . 7 . Energy Discharges 66 | . . 2 . 1 1 1 . 3 . . . 5 . . 2 3 3 5 1 3 . . 4 5 6 . 1 11 4 1 . . . . 1 3 . Parts Rejected 8 | . . . . . . . . . . . . . . . . . . 1 . . . . . . . . 2 1 . 1 . . . . . 3 . Parts Fused 12 | . . . . . . . . . . . . 2 . . . 1 1 . . 1 . . . . 3 . . . . 1 . . . . . 3 . Data Loss (minor) 75 | . 3 . . . 2 3 2 4 . . 3 1 . 1 1 1 2 5 4 2 . . 1 2 7 1 . 11 4 5 . . . . . 8 2 Data Loss (major) 22 | . 1 1 . . 1 1 . 2 . . . 2 . . 1 1 1 . 2 . . . . 1 2 . 1 2 2 1 . . . . . . . Misfires 29 | . 3 . . . . 2 . . . . . 1 . . . . 2 1 3 . . . . 2 4 . . 5 2 1 . . . . . 1 2 Alerts 12 | . . . . . 2 . . 1 . . . 1 . . . . . 1 1 . . . . . . . . 5 . . . . . . . . 1 Misdirections 4 | . . . . . . . . . . . . . . . . . . . . . . . 1 . 1 . . 2 . . . . . . . . . Weapon Failures 20 | . . . . . . 2 1 . . . . . . . . 1 . . 1 . . . 3 . 6 . . 2 2 . . . . . . 1 1 Overload Shots . | . . . . . . . . . . . . . . . . . . . . . . . . . . . . . . . . . . . . . . Overflow Damage 1930 | . 10 . . 9 2 8 42 42 3 . 97 . 19 156 . 1 7 8 . 95 . 55 . . . 148 . 225 . . . . . . 240 552 211 Projectiles 916 | . . . . . . 8 19 20 . . . . 13 . . 1 7 . . . . . . . . 6 . 67 . . . . . . 62 543 170 Explosions 131 | . 10 . . 9 2 . 23 22 . . 41 . 6 . . . . 8 . . . . . . . . . . . . . . . . . 9 1 Melee 883 | . . . . . . . . . 3 . 56 . . 156 . . . . . 95 . 55 . . . 142 . 158 . . . . . . 178 . 40 Knockbacks 4 | . . . . . . . . . . . . . . . . . . 1 . . . . . 1 . . . 2 . . . . . . . . . Impact 4 | . . . . . . . . . . . . . . . . . . 1 . . . . . 1 . . . 2 . . . . . . . . . Kinetic . | . . . . . . . . . . . . . . . . . . . . . . . . . . . . . . . . . . . . . . Secondary . | . . . . . . . . . . . . . . . . . . . . . . . . . . . . . . . . . . . . . . Self-Inflicted Damage 582 | . 37 . . . 53 . . 18 . . 23 75 28 . . 51 50 . . . . . . . 41 . . . . . . . 10 . . 196 . Shots 16 | . 2 . . . 2 . . 1 . . 1 2 1 . . 1 1 . . . . . . . 1 . . . . . . . 1 . . 3 . Rammed 93 | . . 1 . . 6 . 3 . 3 . 3 . . . . . 1 1 . . 2 . . 68 . 2 . 3 . . . . . . . . . Targets Rammed 100 | . 1 1 . 1 6 . 3 . 3 . 3 . . . . . 1 1 . . 2 . . 72 . 3 . 3 . . . . . . . . . Kicked . | . . . . . . . . . . . . . . . . . . . . . . . . . . . . . . . . . . . . . . Crushed 7 | . 1 . . 1 . . . . . . . . . . . . . . . . . . . 4 . 1 . . . . . . . . . . . Highest Temperature 459 | 15 266 169 157 86 459 418 306 345 91 194 400 232 197 318 181 294 366 383 405 307 52 . 81 198 152 426 342 398 205 183 17 . 121 . 195 201 170 Average Temperature 105 | 8 50 85 77 45 169 134 106 113 40 115 102 70 102 133 64 110 103 108 144 128 20 . 46 67 58 116 82 84 108 119 17 . 46 . 66 91 75 Received Heat Transfer 5812 | . 273 . . . 747 252 126 261 24 300 306 369 231 337 30 144 82 297 81 18 285 . . 63 248 121 . 153 81 9 . 21 117 . 64 396 376 Effects 37 | . 1 . . . 12 9 . 3 . . . . . . . 1 3 . 4 2 . . . . . . 2 . . . . . . . . . . Shutdowns 6 | . . . . . 2 2 . . . . . . . . . . . . 1 . . . . . . . 1 . . . . . . . . . . Energy Bleed 8 | . 1 . . . 1 1 . 2 . . . . . . . 1 . . 1 1 . . . . . . . . . . . . . . . . . Interference 17 | . . . . . 5 5 . . . . . . . . . . 3 . 2 1 . . . . . . 1 . . . . . . . . . . Short Circuit 2 | . . . . . 2 . . . . . . . . . . . . . . . . . . . . . . . . . . . . . . . . Damage (minor) 4 | . . . . . 2 1 . 1 . . . . . . . . . . . . . . . . . . . . . . . . . . . . . Siege Activations 18 | . . . . . . . . . . . . . 1 . . . . . 1 . . . . 1 1 1 . 1 1 . . . 2 . 3 3 3 Total Turns 474 | . . . . . . . . . . . . . 15 . . . . . 8 . . . . 15 50 3 . 24 25 . . . 25 . 49 38 222 Longest Duration 132 | . . . . . . . . . . . . . 15 . . . . . 8 . . . . 15 50 3 . 24 25 . . . 18 . 30 17 132 Martial Activations . | . . . . . . . . . . . . . . . . . . . . . . . . . . . . . . . . . . . . . . Shielding Activations . | . . . . . . . . . . . . . . . . . . . . . . . . . . . . . . . . . . . . . . Robots Disrupted 9 | . . . . . . . . . 1 . . . . . . . 2 . . . . . . . . . . 1 . . . . 2 . . 1 2 Combat Hostiles 7 | . . . . . . . . . 1 . . . . . . . 2 . . . . . . . . . . 1 . . . . . . . 1 2 Robots Corrupted 80 | . 2 . . . . . . . . 1 1 3 3 1 1 1 . 1 2 . . . . . 4 1 . 5 . 1 . 1 10 . 8 11 23 Combat Hostiles 75 | . 1 . . . . . . . . 1 1 3 3 1 1 1 . 1 2 . . . . . 4 . . 4 . 1 . 1 10 . 7 10 23 Parts Fried 185 | . 11 . . . . . 2 4 1 6 2 15 6 3 2 5 . 3 3 . . . . 1 7 5 . 16 . 1 . . 12 . 17 20 43 Impact Corruptions 13 | . . . . . . . . . 1 . . . . . . . . . . . . . . . . 4 . 4 . . . . . . 2 . 2 Robots Melted 15 | . . . . . 1 1 . . . . . . . . . . . . 1 . . . . . 4 2 . 1 . . . . . . . 5 . Combat Hostiles 11 | . . . . . 1 1 . . . . . . . . . . . . 1 . . . . . . 2 . 1 . . . . . . . 5 . Parts Melted 124 | . 1 . . . 11 16 1 2 5 . 7 3 4 . 4 2 1 . . . . . . . 18 11 . 3 . . . . . . . 35 . Heat Transferred 38726 | 175 500 . . 150 5156 3906 847 2276 592 74 1547 905 1752 153 300 1309 900 748 350 . . . . . 6250 2379 37 1237 999 . . . 244 . 962 3972 1006 Parts Sabotaged 4 | . . . . . . . . . . . . . . . . 4 . . . . . . . . . . . . . . . . . . . . . Parts Stolen . | . . . . . . . . . . . . . . . . . . . . . . . . . . . . . . . . . . . . . . Parts Stripped . | . . . . . . . . . . . . . . . . . . . . . . . . . . . . . . . . . . . . . . Power Chain Reactions 45 | . 6 . . . 1 . 3 2 . 3 4 7 1 1 . 1 4 1 . . . . . . 1 . . 1 . . . . 1 . . 1 7 Alert | -11 -10 -10 -10 -9 -8 -8 -8 -8 -7 -7 -7 -7 -6 -6 -6 -6 -6 -6 -6 -6 -6 -5 -5 -5 -5 -4 -4 -4 -4 -4 -4 -3 -3 -3 -2 -2 -1 ------- Run | Yrd Mat Min Exi Min Mat Gar Mat Gar Fac Gar Fac Gar Fac Gar Fac Gar Fac Ext Cet Arc Hub Fac Was Fac Gar Fac Was Fac Upp Upp War Pro Res Gar Res Qua Acc Maximum Alert Level 5 | . 1 . . . 2 4 3 4 2 3 1 3 2 3 1 3 1 1 . . . . . . 2 1 . 2 . . . . . 1 1 5 5 Low Security (%) 40 | 100 89 100 . 100 30 . . . . . . . . . . 1 30 84 100 100 100 100 100 100 25 65 100 60 . . . . 100 51 28 . . Level 1 24 | . 10 . . . 59 13 . . . 20 100 15 26 . 100 34 69 15 . . . . . . 27 34 . 34 . . . . . 48 71 . . Level 2 18 | . . . . . 9 39 52 20 99 52 . 37 73 80 . 47 . . . . . . . . 46 . . 4 . . . . . . . . . Level 3 7 | . . . . . . 24 47 46 . 27 . 46 . 19 . 15 . . . . . . . . . . . . . . . . . . . . . Level 4 2 | . . . . . . 22 . 32 . . . . . . . . . . . . . . . . . . . . . . . . . . . . . Level 5 . | . . . . . . . . . . . . . . . . . . . . . . . . . . . . . . . . . . . . . 13 High Security 1 | . . . . . . . . . . . . . . . . . . . . . . . . . . . . . . . . . . . . . 86 Max Security 4 | . . . . . . . . . . . . . . . . . . . . . . . . . . . . . . . . . . . . 99 . Peak Influence 3387 | 10 298 112 . 87 496 1132 785 1258 660 722 378 986 620 723 380 726 380 243 44 43 52 25 . 44 627 353 56 473 . . . . 168 342 364 3387 2615 Initial 2008 | . . 112 . . 29 313 539 494 660 288 378 261 517 427 379 171 380 156 12 . . 25 . . . 329 56 . . . . . . 29 192 198 2008 Average 458 | 1 125 18 . 9 235 723 667 946 523 564 302 677 451 575 306 493 245 120 7 8 7 5 . 5 333 202 9 172 . . . . 34 209 246 2683 2159 Influence Increases 15927 | 10 769 . . 93 1108 904 649 814 112 514 388 855 530 356 122 775 444 348 129 114 158 10 . 97 707 465 2 1378 38 110 . 21 462 313 538 1857 737 Destroy 0b10 Robot/C 8380 | . 400 . . 40 760 480 400 460 60 220 180 460 320 220 75 450 225 180 120 60 30 . . 75 300 255 . 615 30 90 . 15 195 . 285 885 495 Destroy 0b10 Robot/NC 486 | 10 45 . . 5 30 10 45 5 10 . 40 15 5 30 . . 20 8 8 24 8 8 . 4 32 28 . 40 . . . 4 4 . 16 8 24 Destroy Leader 1418 | . 90 . . 10 184 20 82 40 34 40 56 30 62 20 32 32 76 16 . . 16 2 . . 48 54 . 136 8 8 . . 56 . 62 130 74 Allied During Kill 678 | . . . . 11 29 25 12 11 . 9 7 61 . . 2 67 20 10 . . . . . . 45 56 . 244 . . . 2 . . 67 . . Successful Hack 420 | . 29 . . . 12 . 20 20 7 . 40 18 22 . . 9 11 62 . . 23 . . 6 43 4 . 53 . . . . 18 11 12 . . Select Force Hacks 105 | . 60 . . . . . . . . . . . 30 . . . 15 . . . . . . . . . . . . . . . . . . . . Disable Machine 606 | . 15 . . 15 . 15 30 15 . . 15 . 45 . . . 12 48 . 24 12 . . . . 24 . 108 . . . . 12 . 12 180 24 Anti-Garrison Action 1606 | . . . . . . 250 . 150 . 200 . 200 . 50 . 152 . . . . . . . . 189 . . . . . . . 113 302 . . . Destroy Structure 1271 | . 25 . . 12 18 74 15 68 1 45 20 56 16 6 1 17 41 24 1 6 9 . . . 14 20 2 158 . . . . 52 . 84 402 84 Partial Spotted 24 | . . . . . . . . . . . . . . . . . 12 . . . . . . . . . . . . . . . . . . 12 . Lose Combat Pursuer 933 | . 105 . . . 75 30 45 45 . . 30 15 30 30 12 48 12 . . . 60 . . 12 36 24 . 24 . 12 . . 12 . . 240 36 Influence Decreases 14744 | 10 479 290 . 16 702 280 996 316 958 204 736 243 905 244 600 294 850 646 151 114 106 62 . 97 80 932 162 911 505 110 . 21 423 10 526 266 1499 Entered New Map 6258 | . . 178 . . 48 170 568 266 598 124 344 113 469 184 344 74 346 164 10 . . 27 . . . 298 104 . 174 . . . . 10 150 156 1339 Time Decay 6375 | 10 459 112 . 16 565 . 398 . 350 . 392 . 386 . 246 . 464 362 99 107 106 35 . 87 . 494 40 501 281 110 . 4 385 . 326 . 40 Lost Part 777 | . 10 . . . 40 50 . 10 10 20 . 50 50 40 10 40 . 40 40 7 . . . 10 60 20 . . 50 . . . 20 . . 80 120 Lost Ally 1334 | . 10 . . . 49 60 30 40 . 60 . 80 . 20 . 180 40 80 2 . . . . . 20 120 18 410 . . . 17 18 . 50 30 . Squads Dispatched 160 | . 4 . . . 7 . 1 . 2 . 7 . 7 . 1 . 9 3 . . 7 1 . 1 . 3 . 13 . . . . 8 . 3 58 25 Investigation 25 | . 2 . . . . . . . 1 . 2 . 3 . . . 5 2 . . . . . . . . . 1 . . . . 7 . 2 . . Extermination 17 | . . . . . . . . . 1 . 2 . 2 . 1 . 2 . . . 1 . . 1 . 2 . 4 . . . . . . 1 . . Reinforcement 28 | . 2 . . . 4 . 1 . . . 2 . 2 . . . 2 1 . . 3 1 . . . 1 . 5 . . . . 1 . . . 3 Assault 85 | . . . . . . . . . . . . . . . . . . . . . 2 . . . . . . 3 . . . . . . . 58 22 Garrison 5 | . . . . . 3 . . . . . 1 . . . . . . . . . 1 . . . . . . . . . . . . . . . . Intercept . | . . . . . . . . . . . . . . . . . . . . . . . . . . . . . . . . . . . . . . Searches Triggered . | . . . . . . . . . . . . . . . . . . . . . . . . . . . . . . . . . . . . . . Construction Impeded 8 | . . . . . 1 . . . . . 2 . 1 . . . . . . . . 1 . . . . . . . . . . . . . . 3 Haulers Reinforced . | . . . . . . . . . . . . . . . . . . . . . . . . . . . . . . . . . . . . . . Active Scanning Responses . | . . . . . . . . . . . . . . . . . . . . . . . . . . . . . . . . . . . . . . Cargo Convoy Interrupts 2 | . . . . . . . . . . . 1 . 1 . . . . . . . . . . . . . . . . . . . . . . . . Stealth | -11 -10 -10 -10 -9 -8 -8 -8 -8 -7 -7 -7 -7 -6 -6 -6 -6 -6 -6 -6 -6 -6 -5 -5 -5 -5 -4 -4 -4 -4 -4 -4 -3 -3 -3 -2 -2 -1 --------- Run | Yrd Mat Min Exi Min Mat Gar Mat Gar Fac Gar Fac Gar Fac Gar Fac Gar Fac Ext Cet Arc Hub Fac Was Fac Gar Fac Was Fac Upp Upp War Pro Res Gar Res Qua Acc Distress Signals 44 | . . . . . 5 2 5 . 1 . 3 1 . . . . 1 3 2 . 1 . . 1 . 3 . 4 . . . 1 6 . . 2 3 Communications Jammed . | . . . . . . . . . . . . . . . . . . . . . . . . . . . . . . . . . . . . . . Distress Signals . | . . . . . . . . . . . . . . . . . . . . . . . . . . . . . . . . . . . . . . Times Spotted 750 | . 36 . . 3 56 29 36 24 8 15 21 29 24 25 6 35 16 17 8 6 21 1 6 9 19 35 4 48 2 8 . 4 21 . 20 98 60 Peak Tracking Total 15 | . 4 . . 4 6 7 8 6 3 5 5 9 12 11 2 7 4 4 5 1 14 1 3 5 3 5 2 5 1 4 . 2 6 . 5 11 15 Tactical Retreats 50 | . 4 . . 1 4 2 3 1 . . 2 1 2 2 1 2 1 . . . 1 . . 1 2 2 . 2 . 1 . . 1 . . 11 3 Traps | -11 -10 -10 -10 -9 -8 -8 -8 -8 -7 -7 -7 -7 -6 -6 -6 -6 -6 -6 -6 -6 -6 -5 -5 -5 -5 -4 -4 -4 -4 -4 -4 -3 -3 -3 -2 -2 -1 ------- Run | Yrd Mat Min Exi Min Mat Gar Mat Gar Fac Gar Fac Gar Fac Gar Fac Gar Fac Ext Cet Arc Hub Fac Was Fac Gar Fac Was Fac Upp Upp War Pro Res Gar Res Qua Acc Traps Triggered 23 | . 2 . . . . 3 . 2 . . 1 1 1 . 1 3 1 1 . . . 1 . . . 1 . 1 . . . . . 1 1 2 . Indirectly 1 | . . . . . . . . 1 . . . . . . . . . . . . . . . . . . . . . . . . . . . . . Trap Hack Attempts . | . . . . . . . . . . . . . . . . . . . . . . . . . . . . . . . . . . . . . . Triggered . | . . . . . . . . . . . . . . . . . . . . . . . . . . . . . . . . . . . . . . Disarmed . | . . . . . . . . . . . . . . . . . . . . . . . . . . . . . . . . . . . . . . Reprogrammed . | . . . . . . . . . . . . . . . . . . . . . . . . . . . . . . . . . . . . . . Reused . | . . . . . . . . . . . . . . . . . . . . . . . . . . . . . . . . . . . . . . Traps Extracted . | . . . . . . . . . . . . . . . . . . . . . . . . . . . . . . . . . . . . . . Installed . | . . . . . . . . . . . . . . . . . . . . . . . . . . . . . . . . . . . . . . Triggered . | . . . . . . . . . . . . . . . . . . . . . . . . . . . . . . . . . . . . . . Machines | -11 -10 -10 -10 -9 -8 -8 -8 -8 -7 -7 -7 -7 -6 -6 -6 -6 -6 -6 -6 -6 -6 -5 -5 -5 -5 -4 -4 -4 -4 -4 -4 -3 -3 -3 -2 -2 -1 ---------- Run | Yrd Mat Min Exi Min Mat Gar Mat Gar Fac Gar Fac Gar Fac Gar Fac Gar Fac Ext Cet Arc Hub Fac Was Fac Gar Fac Was Fac Upp Upp War Pro Res Gar Res Qua Acc Machines Disabled 73 | . 1 . . 1 . 4 2 4 . 4 1 3 3 1 . 4 1 4 . 2 1 . . . 3 2 . 9 . . . 1 2 2 1 15 2 Max in Single Turn 4 | . 1 . . 1 . 1 1 1 . 1 1 1 3 1 . 1 1 3 . 1 1 . . . 1 1 . 4 . . . 1 1 1 1 1 1 Garrison Access 4 | . . . . . . . . . . . . . . . . . . . . . 1 . . . . . . 1 . . . . 1 . . 1 . Garrison Relay 23 | . . . . . . 3 . 3 . 4 . 3 . 1 . 4 . . . . . . . . 3 . . . . . . . . 2 . . . Network Hub 1 | . . . . . . . . . . . . . . . . . . . . . 1 . . . . . . . . . . . . . . . . Energy Cycler 2 | . . . . . . . . . . . . . . . . . . 2 . . . . . . . . . . . . . . . . . . . Machines Repaired . | . . . . . . . . . . . . . . . . . . . . . . . . . . . . . . . . . . . . . . Machines Dismantled 1 | . . . . . . . . . . . . . . . . . . . . . 1 . . . . . . . . . . . . . . . . Machines Sabotaged . | . . . . . . . . . . . . . . . . . . . . . . . . . . . . . . . . . . . . . . Overloaded Fab Kills . | . . . . . . . . . . . . . . . . . . . . . . . . . . . . . . . . . . . . . . Hacking | -11 -10 -10 -10 -9 -8 -8 -8 -8 -7 -7 -7 -7 -6 -6 -6 -6 -6 -6 -6 -6 -6 -5 -5 -5 -5 -4 -4 -4 -4 -4 -4 -3 -3 -3 -2 -2 -1 --------- Run | Yrd Mat Min Exi Min Mat Gar Mat Gar Fac Gar Fac Gar Fac Gar Fac Gar Fac Ext Cet Arc Hub Fac Was Fac Gar Fac Was Fac Upp Upp War Pro Res Gar Res Qua Acc Machines Accessed 92 | . 9 . 2 . 7 1 7 2 4 . 6 3 5 . 1 1 7 7 . . 4 . . 1 2 5 . 5 . . . . 8 3 2 . . Terminals 57 | . 6 . . . 5 1 4 2 2 . 4 3 1 . . 1 3 6 . . 4 . . . 2 3 . 3 . . . . 4 3 . . . Fabricators 9 | . . . . . . . . . . . . . . . . . 3 . . . . . . . . 2 . 1 . . . . 2 . 1 . . Repair Stations 7 | . 1 . . . . . 1 . 1 . 1 . 1 . . . 1 1 . . . . . . . . . . . . . . . . . . . Recycling Units 2 | . 2 . . . . . . . . . . . . . . . . . . . . . . . . . . . . . . . . . . . . Scanalyzers 6 | . . . . . 1 . 1 . . . . . 2 . . . . . . . . . . . . . . 1 . . . . . . 1 . . Garrison Access 9 | . . . . . 1 . 1 . 1 . 1 . 1 . 1 . . . . . . . . 1 . . . . . . . . 2 . . . . Total Hacks 294 | . 21 . 8 . 26 3 20 2 7 . 18 7 15 . 4 4 18 17 . . 12 . . 2 6 21 . 39 . . . . 21 17 6 . . Successful 158 | . 12 . 8 . 16 . 13 2 3 . 7 2 9 . 2 1 11 11 . . 8 . . 2 4 11 . 24 . . . . 7 3 2 . . Failed 133 | . 9 . . . 9 3 6 . 4 . 11 5 6 . 2 3 7 6 . . 4 . . . 2 10 . 14 . . . . 14 14 4 . . Catastrophic 21 | . 1 . . . . . . . 1 . 3 1 . . . . 1 1 . . . . . . 1 4 . 2 . . . . 3 2 1 . . Database Lockouts 3 | . . . . . 1 . 1 . . . . . . . . . . . . . . . . . . . . 1 . . . . . . . . . Manual 126 | . 19 . 1 . 13 . 10 . 6 . 6 2 7 . 3 3 3 5 . . 9 . . 1 4 6 . 14 . . . . 10 4 . . . Terminals 167 | . 18 . . . 19 3 11 2 3 . 12 7 3 . . 4 6 15 . . 12 . . . 6 4 . 16 . . . . 9 17 . . . Fabricators 53 | . . . . . . . . . . . . . . . . . 8 . . . . . . . . 17 . 17 . . . . 8 . 3 . . Repair Stations 19 | . 1 . . . . . 2 . 2 . 4 . 4 . . . 4 2 . . . . . . . . . . . . . . . . . . . Recycling Units 2 | . 2 . . . . . . . . . . . . . . . . . . . . . . . . . . . . . . . . . . . . Scanalyzers 27 | . . . . . 6 . 6 . . . . . 6 . . . . . . . . . . . . . . 6 . . . . . . 3 . . Garrison Access 18 | . . . . . 1 . 1 . 2 . 2 . 2 . 4 . . . . . . . . 2 . . . . . . . . 4 . . . . Terminal Hacks 37 | . 2 . 8 . 3 . . 2 1 . 1 2 . . . 1 2 6 . . 3 . . . 2 . . 2 . . . . . 2 . . . Record 7 | . . . 7 . . . . . . . . . . . . . . . . . . . . . . . . . . . . . . . . . . Part Schematic 5 | . . . . . . . . . . . . . . . . . 1 2 . . 1 . . . . . . 1 . . . . . . . . . Robot Schematic 2 | . . . . . . . . . . . . . . . . . . 1 . . . . . . . . . 1 . . . . . . . . . Robot Analysis 2 | . . . . . . . . . 1 . . . . . . . 1 . . . . . . . . . . . . . . . . . . . . Prototype ID Bank 2 | . . . . . . . . . . . . . . . . . . 2 . . . . . . . . . . . . . . . . . . . Open Door 3 | . . . . . . . . 1 . . . 1 . . . . . . . . . . . . . . . . . . . . . 1 . . . Branch Access Points 1 | . 1 . . . . . . . . . . . . . . . . . . . . . . . . . . . . . . . . . . . . Emergency Access Points 3 | . . . . . . . . 1 . . . . . . . 1 . . . . . . . . 1 . . . . . . . . . . . . Terminal Index 1 | . 1 . . . . . . . . . . . . . . . . . . . . . . . . . . . . . . . . . . . . Locate Traps 1 | . . . . . 1 . . . . . . . . . . . . . . . . . . . . . . . . . . . . . . . . Registered Components 1 | . . . . . . . . . . . . . . . . . . 1 . . . . . . . . . . . . . . . . . . . Registered Prototypes 1 | . . . . . 1 . . . . . . . . . . . . . . . . . . . . . . . . . . . . . . . . Zone Layout 4 | . . . . . 1 . . . . . 1 . . . . . . . . . 2 . . . . . . . . . . . . . . . . Patrol Navigation 2 | . . . . . . . . . . . . 1 . . . . . . . . . . . . . . . . . . . . . 1 . . . Security Stations 1 | . . . . . . . . . . . . . . . . . . . . . . . . . 1 . . . . . . . . . . . . Proto ID Catalog 1 | . . . 1 . . . . . . . . . . . . . . . . . . . . . . . . . . . . . . . . . . Fabricator Hacks 33 | . . . . . . . . . . . . . . . . . 2 . . . . . . . . 9 . 16 . . . . 4 . 2 . . Load Schematic 17 | . . . . . . . . . . . . . . . . . 2 . . . . . . . . 4 . 8 . . . . 2 . 1 . . Build 16 | . . . . . . . . . . . . . . . . . . . . . . . . . . 5 . 8 . . . . 2 . 1 . . Repair Station Hacks 11 | . . . . . . . 2 . . . 1 . 2 . . . 4 2 . . . . . . . . . . . . . . . . . . . Scan Component 6 | . . . . . . . 1 . . . 1 . 1 . . . 2 1 . . . . . . . . . . . . . . . . . . . Repair 5 | . . . . . . . 1 . . . . . 1 . . . 2 1 . . . . . . . . . . . . . . . . . . . Recycling Unit Hacks . | . . . . . . . . . . . . . . . . . . . . . . . . . . . . . . . . . . . . . . Scanalyzer 17 | . . . . . 6 . 5 . . . . . 3 . . . . . . . . . . . . . . 3 . . . . . . . . . Insert Component 4 | . . . . . 2 . . . . . . . 1 . . . . . . . . . . . . . . 1 . . . . . . . . . Analyze 5 | . . . . . 3 . . . . . . . 1 . . . . . . . . . . . . . . 1 . . . . . . . . . Retrieve Study 8 | . . . . . 1 . 5 . . . . . 1 . . . . . . . . . . . . . . 1 . . . . . . . . . Garrison Access Hacks 9 | . . . . . 1 . 1 . 1 . 1 . 1 . 1 . . . . . . . . 1 . . . . . . . . 2 . . . . Unlock Access 9 | . . . . . 1 . 1 . 1 . 1 . 1 . 1 . . . . . . . . 1 . . . . . . . . 2 . . . . Unauthorized Hacks 51 | . 10 . . . 6 . 5 . 1 . 4 . 3 . 1 . 3 3 . . 5 . . 1 2 2 . 3 . . . . 1 1 . . . Terminals 38 | . 8 . . . 6 . 5 . 1 . 2 . 1 . . . 1 3 . . 5 . . . 2 1 . 2 . . . . . 1 . . . Track 1 | . 1 . . . . . . . . . . . . . . . . . . . . . . . . . . . . . . . . . . . . Assimilate 1 | . 1 . . . . . . . . . . . . . . . . . . . . . . . . . . . . . . . . . . . . Botnet 21 | . 1 . . . 1 . 2 . 1 . 2 . 1 . . . 1 3 . . 3 . . . 2 1 . 2 . . . . . 1 . . . Skim 15 | . 5 . . . 5 . 3 . . . . . . . . . . . . . 2 . . . . . . . . . . . . . . . . Fabricators 5 | . . . . . . . . . . . . . . . . . 2 . . . . . . . . 1 . 1 . . . . 1 . . . . Prioritize 3 | . . . . . . . . . . . . . . . . . . . . . . . . . . 1 . 1 . . . . 1 . . . . Download 1 | . . . . . . . . . . . . . . . . . 1 . . . . . . . . . . . . . . . . . . . . Recompile 1 | . . . . . . . . . . . . . . . . . 1 . . . . . . . . . . . . . . . . . . . . Repair Stations 1 | . . . . . . . . . . . 1 . . . . . . . . . . . . . . . . . . . . . . . . . . Patch 1 | . . . . . . . . . . . 1 . . . . . . . . . . . . . . . . . . . . . . . . . . Recycling Units 2 | . 2 . . . . . . . . . . . . . . . . . . . . . . . . . . . . . . . . . . . . Tunnel 2 | . 2 . . . . . . . . . . . . . . . . . . . . . . . . . . . . . . . . . . . . Scanalyzers 1 | . . . . . . . . . . . . . 1 . . . . . . . . . . . . . . . . . . . . . . . . Extract 1 | . . . . . . . . . . . . . 1 . . . . . . . . . . . . . . . . . . . . . . . . Garrison Access 4 | . . . . . . . . . . . 1 . 1 . 1 . . . . . . . . 1 . . . . . . . . . . . . . Reprogram 4 | . . . . . . . . . . . 1 . 1 . 1 . . . . . . . . 1 . . . . . . . . . . . . . Data Cores Recovered 1 | . . . . . 1 . . . . . . . . . . . . . . . . . . . . . . . . . . . . . . . . Used . | . . . . . . . . . . . . . . . . . . . . . . . . . . . . . . . . . . . . . . Hacking Detections 79 | . 7 . . . 6 1 5 1 4 . 6 3 4 . 1 1 6 7 . . 4 . . . 2 5 . 4 . . . . 7 3 2 . . Full Trace Events 14 | . . . . . . . . . 1 . . 1 2 . . . 2 2 . . . . . . . . . . . . . . 2 2 2 . . Feedback Events 1 | . . . . . . . . . . . . . . . . . 1 . . . . . . . . . . . . . . . . . . . . Corruption 1 | . . . . . . . . . . . . . . . . . 1 . . . . . . . . . . . . . . . . . . . . Feedback Blocked . | . . . . . . . . . . . . . . . . . . . . . . . . . . . . . . . . . . . . . . Robot Schematics Acquired 3 | . . . . . . . . . . . . . . . . . 1 1 . . . . . . . . . 1 . . . . . . . . . Robots Built 34 | . . . . . . . . . . . . . . . . . . . . . . . . . . 10 . 21 . . . . 2 . 1 . . Authchips 12 | . . . . . . . . . . . . . . . . . . . . . . . . . . 4 . 8 . . . . . . . . . Time 567 | . . . . . . . . . . . . . . . . . . . . . . . . . . 232 . 161 . . . . 116 . 58 . . Total Robot Build Rating 108 | . . . . . . . . . . . . . . . . . . . . . . . . . . 30 . 69 . . . . 6 . 3 . . Part Schematics Acquired 9 | . . . . . 1 . . . . . . . 2 . . . 1 2 . . 1 . . . . . . 2 . . . . . . . . . Parts Built 2 | . . . . . . . . . . . . . . . . . . . . . . . . . . 2 . . . . . . . . . . . Authchips . | . . . . . . . . . . . . . . . . . . . . . . . . . . . . . . . . . . . . . . Time 69 | . . . . . . . . . . . . . . . . . . . . . . . . . . 69 . . . . . . . . . . . Total Part Build Rating 18 | . . . . . . . . . . . . . . . . . . . . . . . . . . 18 . . . . . . . . . . . Part Studies Acquired 8 | . . . . . 1 . 5 . . . . . 1 . . . . . . . . . . . . . . 1 . . . . . . . . . Parts Repaired 5 | . . . . . . . 1 . . . . . 1 . . . 2 1 . . . . . . . . . . . . . . . . . . . Time 225 | . . . . . . . 32 . . . . . 37 . . . 112 44 . . . . . . . . . . . . . . . . . . . Parts Recycled . | . . . . . . . . . . . . . . . . . . . . . . . . . . . . . . . . . . . . . . Recycled Matter . | . . . . . . . . . . . . . . . . . . . . . . . . . . . . . . . . . . . . . . Retrieved Matter . | . . . . . . . . . . . . . . . . . . . . . . . . . . . . . . . . . . . . . . Retrieved Components . | . . . . . . . . . . . . . . . . . . . . . . . . . . . . . . . . . . . . . . Parts Scanalyzed 3 | . . . . . 1 . . . . . . . 1 . . . . . . . . . . . . . . 1 . . . . . . . . . Part Schematics Acquired 3 | . . . . . 1 . . . . . . . 1 . . . . . . . . . . . . . . 1 . . . . . . . . . Parts Damaged . | . . . . . . . . . . . . . . . . . . . . . . . . . . . . . . . . . . . . . . Bothacking | -11 -10 -10 -10 -9 -8 -8 -8 -8 -7 -7 -7 -7 -6 -6 -6 -6 -6 -6 -6 -6 -6 -5 -5 -5 -5 -4 -4 -4 -4 -4 -4 -3 -3 -3 -2 -2 -1 ------------ Run | Yrd Mat Min Exi Min Mat Gar Mat Gar Fac Gar Fac Gar Fac Gar Fac Gar Fac Ext Cet Arc Hub Fac Was Fac Gar Fac Was Fac Upp Upp War Pro Res Gar Res Qua Acc Used RIF Installer 8 | . . . . . . 1 . 1 . 1 . 1 . 1 . 1 . . . . . . . . 1 . . . . . . . . 1 . . . Hotswap 1 | . . . . . . . . 1 . . . . . . . . . . . . . . . . . . . . . . . . . . . . . Command Fork 1 | . . . . . . . . . . . . . . . . . . . . . . . . . . . . . . . . . . 1 . . . Threat Obfuscator 1 | . . . . . . . . . . . . . . 1 . . . . . . . . . . . . . . . . . . . . . . . Zone Cloak 1 | . . . . . . . . . . . . . . . . . . . . . . . . . 1 . . . . . . . . . . . . Patrol Navigation 1 | . . . . . . . . . . . . 1 . . . . . . . . . . . . . . . . . . . . . . . . . Structural Interface 1 | . . . . . . . . . . 1 . . . . . . . . . . . . . . . . . . . . . . . . . . . Autooverride 1 | . . . . . . . . . . . . . . . . 1 . . . . . . . . . . . . . . . . . . . . . Robots Hacked 48 | . . . . . . . 1 2 . 2 . 1 . 6 2 5 2 4 . . 2 . . . . 8 7 4 . . . 1 . . . . 1 Non-combat 7 | . . . . . . . 1 . . . . . . . 1 . . . . . . . . . . 1 1 2 . . . . . . . . 1 Combat 41 | . . . . . . . . 2 . 2 . 1 . 6 1 5 2 4 . . 2 . . . . 7 6 2 . . . 1 . . . . . Autooverrided 1 | . . . . . . . . . . . . . . . . . . . . . . . . . . . . 1 . . . . . . . . . Robot Hacks Applied 53 | . . . . . . . 1 2 . 2 . 1 . 8 2 6 2 4 . . 2 . . . . 9 7 5 . . . 1 . . . . 1 parse_system 4 | . . . . . . . . . . . . . . 1 . 1 . . . . . . . . . . 1 1 . . . . . . . . . no_distress 1 | . . . . . . . . . . . . . . . . . . . . . . . . . . 1 . . . . . . . . . . . find_chute 1 | . . . . . . . . . . . . . . . . . . . . . . . . . . 1 . . . . . . . . . . . map_walls 1 | . . . . . . . . . . . . . . . . . . . . . . . . . . . . . . . . . . . . . 1 drop_inventory 1 | . . . . . . . . . . . . . . . 1 . . . . . . . . . . . . . . . . . . . . . . block_reporting 1 | . . . . . . . . . . . . . . . . . . . . . . . . . . . . 1 . . . . . . . . . ignore_targets 6 | . . . . . . . . . . . . . . . . . . . . . . . . . . . 6 . . . . . . . . . . scatter_targeting 1 | . . . . . . . . . . . . . . . . . . . . . . . . . . 1 . . . . . . . . . . . link_complan 1 | . . . . . . . . . . . . . . 1 . . . . . . . . . . . . . . . . . . . . . . . overload_power 1 | . . . . . . . . . . . . . . 1 . . . . . . . . . . . . . . . . . . . . . . . amplify_resonance 4 | . . . . . . . . . . . . . . 4 . . . . . . . . . . . . . . . . . . . . . . . reboot_system 1 | . . . . . . . . . . . . . . . . . . . . . . . . . . . . 1 . . . . . . . . . overwrite_iff 3 | . . . . . . . . . . . . . . 1 . . . 2 . . . . . . . . . . . . . . . . . . . formatsys_low 1 | . . . . . . . . . . . . . . . . . . . . . . . . . . . . 1 . . . . . . . . . formatsys_high 25 | . . . . . . . 1 2 . 2 . 1 . . . 5 2 2 . . 2 . . . . 6 . 1 . . . 1 . . . . . formatsys_deep 1 | . . . . . . . . . . . . . . . 1 . . . . . . . . . . . . . . . . . . . . . . Relay Couplers Released 115 | . . . . . . 15 . 13 . 17 . 13 . 4 4 17 3 . . . 2 . . . 12 . . 4 . . . . 2 7 . 2 . Machine Destruction 100 | . . . . . . 11 . 13 . 17 . 13 . 4 . 17 . . . . 2 . . . 12 . . . . . . . 2 7 . 2 . Programmers 15 | . . . . . . 4 . . . . . . . . 4 . 3 . . . . . . . . . . 4 . . . . . . . . . Attached 17 | . . . . . . . 1 1 . 1 . 1 1 2 . 2 1 . . . 1 . . . 2 2 . . . . . 1 . . . . 1 Fabnet Peak Effective % . | . . . . . . . . . . . . . . . . . . . . . . . . . . . . . . . . . . . . . . Robots Rewired 26 | . . . . . . 9 . . 1 . . . . . . 3 1 3 . . . . . . 3 . . 1 . . . . 1 4 . . . Allies Hacked 6 | . . . . . . . . . . . . 2 . . . . . . . . . . . . . 2 . 2 . . . . . . . . . Hacks Repelled . | . . . . . . . . . . . . . . . . . . . . . . . . . . . . . . . . . . . . . . Allies | -11 -10 -10 -10 -9 -8 -8 -8 -8 -7 -7 -7 -7 -6 -6 -6 -6 -6 -6 -6 -6 -6 -5 -5 -5 -5 -4 -4 -4 -4 -4 -4 -3 -3 -3 -2 -2 -1 -------- Run | Yrd Mat Min Exi Min Mat Gar Mat Gar Fac Gar Fac Gar Fac Gar Fac Gar Fac Ext Cet Arc Hub Fac Was Fac Gar Fac Was Fac Upp Upp War Pro Res Gar Res Qua Acc Total Allies 107 | . 1 5 . 1 . 9 1 3 1 2 3 2 . 1 1 9 3 10 . . 2 . . . 3 16 . 25 . . . 1 3 4 1 . . Largest Group 23 | . 1 5 5 4 3 7 3 2 1 3 3 5 . 1 1 8 2 5 2 . 2 . . . 3 9 6 23 . . . 1 2 5 5 1 . Highest-Rated Group 527 | . 10 85 85 71 55 120 60 32 32 64 36 77 . 29 27 208 113 157 63 . 64 . . . 204 217 169 527 . . . 49 46 236 236 23 . Highest-Rated Ally 81 | . 10 31 31 31 31 24 24 25 32 32 12 21 . 29 27 41 81 32 32 . 32 . . . 68 68 49 49 . . . 49 23 64 64 23 . Total Orders 39 | . . . . . . . . . . . . . . . . . 2 . 1 . 5 . . . 2 3 1 15 . . . . 4 1 2 3 . STAY 13 | . . . . . . . . . . . . . . . . . 1 . . . 2 . . . 1 1 . 8 . . . . . . . . . ROAM 4 | . . . . . . . . . . . . . . . . . . . 1 . 2 . . . . . . . . . . . 1 . . . . FOLLOW 7 | . . . . . . . . . . . . . . . . . 1 . . . 1 . . . 1 1 . 3 . . . . . . . . . AID 9 | . . . . . . . . . . . . . . . . . . . . . . . . . . 1 1 2 . . . . 2 1 2 . . DROP 1 | . . . . . . . . . . . . . . . . . . . . . . . . . . . . . . . . . 1 . . . . EXPLORE 5 | . . . . . . . . . . . . . . . . . . . . . . . . . . . . 2 . . . . . . . 3 . Ally Attacks 702 | . . . . 16 47 15 16 21 . 8 1 52 . 1 . 22 28 15 9 . 2 . . . 19 68 176 137 . . . 11 . . 38 . . Total Damage 15483 | . . . . 191 485 290 388 255 . 111 15 702 . 20 . 531 1018 568 165 . 67 . . . 1157 2001 3059 3273 . . . 381 . . 806 . . Kills 100 | . . . . 4 6 4 7 3 . . 1 8 . . . 5 10 3 . . . . . . 8 9 5 22 . . . 1 . . 4 . . Allies Corrupted 4 | . . . . . . . . . . . . . . . . . . . . . 1 . . . . . . 2 . . . . 1 . . . . Allies Melted 2 | . . . . . . . . . . . . . . . . . . 1 . . . . . . . . . . . . . . . . 1 . . Intel | -11 -10 -10 -10 -9 -8 -8 -8 -8 -7 -7 -7 -7 -6 -6 -6 -6 -6 -6 -6 -6 -6 -5 -5 -5 -5 -4 -4 -4 -4 -4 -4 -3 -3 -3 -2 -2 -1 ------- Run | Yrd Mat Min Exi Min Mat Gar Mat Gar Fac Gar Fac Gar Fac Gar Fac Gar Fac Ext Cet Arc Hub Fac Was Fac Gar Fac Was Fac Upp Upp War Pro Res Gar Res Qua Acc Active Infowar (turns) 5811 | 9 1286 108 . . . . . . . . . . . . . . . . . . . . . . . . . 376 . . . . 1479 733 576 754 490 Terrain 492 | . . . . . . . . . . . . . . . . . . . . . . . . . . . . . . . . . . . 2 . 490 Traps 3918 | . . . . . . . . . . . . . . . . . . . . . . . . . . . . 376 . . . . 1479 733 576 754 . Seismic 1403 | 9 1286 108 . . . . . . . . . . . . . . . . . . . . . . . . . . . . . . . . . . . Jamming 2 | . . . . . . . . . . . . . . . . . . . . . . . . . . . . . . . . . . . 2 . . Robot Analysis Total 2 | . . . . . . . . . 1 . . . . . . . 1 . . . . . . . . . . . . . . . . . . . . Derelict Logs Recovered 4 | . . 1 . 1 . . . . . . . . . . . . . . . . . . . . . . . . 2 . . . . . . . . Drone Launches 14 | . . . . . . . . . . . . . . . . . . . . . . . . . . . . 9 . . . . . . . 5 . Drone Recoveries 6 | . . . . . . . . . . . . . . . . . . . . . . . . . . . . 3 . . . . . . . 3 . Exploration | -11 -10 -10 -10 -9 -8 -8 -8 -8 -7 -7 -7 -7 -6 -6 -6 -6 -6 -6 -6 -6 -6 -5 -5 -5 -5 -4 -4 -4 -4 -4 -4 -3 -3 -3 -2 -2 -1 ------------- Run | Yrd Mat Min Exi Min Mat Gar Mat Gar Fac Gar Fac Gar Fac Gar Fac Gar Fac Ext Cet Arc Hub Fac Was Fac Gar Fac Was Fac Upp Upp War Pro Res Gar Res Qua Acc Turns Passed 32566 | 47 1365 724 500 196 1699 1636 948 1033 784 798 925 1162 905 597 535 897 1164 826 493 470 466 170 322 751 1224 1310 339 2600 700 420 753 92 2180 733 734 1376 692 Spaces Moved 15798 | 33 664 422 309 114 681 675 482 490 442 415 474 592 415 250 292 402 538 407 183 167 260 239 263 511 596 641 186 1300 392 239 73 30 1136 398 293 622 172 Core 1116 | 27 13 . . . . . . . . . . . . . . . . . 16 . 55 239 246 373 147 . . . . . . . . . . . . Treads 14682 | 6 651 422 309 114 681 675 482 490 442 415 474 592 415 250 292 402 538 407 167 167 205 . 17 138 449 641 186 1300 392 239 73 30 1136 398 293 622 172 Legs . | . . . . . . . . . . . . . . . . . . . . . . . . . . . . . . . . . . . . . . Wheels . | . . . . . . . . . . . . . . . . . . . . . . . . . . . . . . . . . . . . . . Hover . | . . . . . . . . . . . . . . . . . . . . . . . . . . . . . . . . . . . . . . Flight . | . . . . . . . . . . . . . . . . . . . . . . . . . . . . . . . . . . . . . . Fastest Speed 50 | 50 50 160 160 160 145 160 155 158 158 160 160 163 160 160 160 160 160 160 50 160 50 50 50 50 50 160 160 160 166 166 166 166 161 161 161 160 155 Average Speed 157 | 70 168 160 160 160 189 186 158 159 158 160 161 164 162 160 160 160 160 160 206 196 136 50 57 98 133 160 160 161 166 166 166 166 165 161 161 162 167 Slowest Speed 450 | 160 240 160 160 160 241 241 160 198 162 160 165 165 163 163 160 240 160 160 240 240 160 50 160 160 450 160 160 166 166 166 166 166 200 161 212 235 400 Overloaded Moves . | . . . . . . . . . . . . . . . . . . . . . . . . . . . . . . . . . . . . . . Propulsion Burnouts . | . . . . . . . . . . . . . . . . . . . . . . . . . . . . . . . . . . . . . . Robots Hopped . | . . . . . . . . . . . . . . . . . . . . . . . . . . . . . . . . . . . . . . Potential Cave-ins . | . . . . . . . . . . . . . . . . . . . . . . . . . . . . . . . . . . . . . . Cave-ins Triggered . | . . . . . . . . . . . . . . . . . . . . . . . . . . . . . . . . . . . . . . Teleports 2 | . . . . . . . . . . . . . . . . . . . . . . . . . . . . . . . . . . . . 1 1 Exploration Rate (%) 47 | 4 94 92 76 32 69 77 58 75 18 66 22 84 17 36 6 46 23 71 56 80 34 9 86 9 82 17 79 39 52 58 15 12 44 60 15 72 7 Regions Visited 37 Branch Regions 12 Pre-discovered Areas 4 | . 2 1 1 . . . . . . . . . . . . . . . . . . . . . . . . . . . . . . . . . . Known Exits Taken 12 | . 1 . . 1 1 . 1 . 1 . 1 . 1 . 1 . . . . . . . . 1 . . . 1 . . . 1 1 . . . . Unknown Exits Taken 13 | 1 . 1 1 . . . . . . . . . . . . . 1 1 1 1 1 . . . . . . . 1 1 1 . . . 1 1 . Scrap Searched 3 | . . 1 . . . . . . . . . . . . . . . . . . . . . . . . . . 2 . . . . . . . . Spaces Dug 143 | . . . . . 4 14 . 3 . 8 5 . 9 . 1 1 2 . . . 2 . . . 2 4 . 30 . . . . 23 . 18 8 9 Terrain Destroyed 590 | . 25 . . 13 13 14 14 13 . 15 26 31 14 2 1 1 6 30 1 8 10 . . . 4 7 1 75 3 . . . 31 . 21 173 38 Melee 71 | . . . . . 4 14 . 3 . 8 5 . 9 . 1 1 . . . . 2 . . . . 3 . 18 . . . . . . 3 . . Projectile 165 | . . . . . . . . 1 . . . . 5 . . . 4 1 1 8 8 . . . 2 4 1 33 3 . . . 24 . 18 41 11 AOE 353 | . 25 . . 13 9 . 14 9 . 7 21 31 . 2 . . 2 29 . . . . . . 1 . . 24 . . . . 7 . . 132 27 Terrain Rammed . | . . . . . . . . . . . . . . . . . . . . . . . . . . . . . . . . . . . . . . Walls Destroyed . | . . . . . . . . . . . . . . . . . . . . . . . . . . . . . . . . . . . . . . Machines Disabled . | . . . . . . . . . . . . . . . . . . . . . . . . . . . . . . . . . . . . . . Actions | -11 -10 -10 -10 -9 -8 -8 -8 -8 -7 -7 -7 -7 -6 -6 -6 -6 -6 -6 -6 -6 -6 -5 -5 -5 -5 -4 -4 -4 -4 -4 -4 -3 -3 -3 -2 -2 -1 --------- Run | Yrd Mat Min Exi Min Mat Gar Mat Gar Fac Gar Fac Gar Fac Gar Fac Gar Fac Ext Cet Arc Hub Fac Was Fac Gar Fac Was Fac Upp Upp War Pro Res Gar Res Qua Acc Total 21544 | 43 810 472 314 125 935 898 601 630 506 482 561 693 555 354 341 540 789 521 264 265 333 273 360 706 874 869 227 1756 442 262 705 68 1429 486 537 983 535 Wait 2521 | . 66 39 1 4 82 62 39 38 11 1 19 21 57 3 12 7 180 52 17 50 38 6 2 102 41 109 14 215 6 1 632 17 110 29 118 80 240 Move 15767 | 32 663 421 308 113 681 674 482 489 442 414 474 591 414 249 291 401 537 406 182 166 259 239 262 510 595 641 185 1299 391 238 72 29 1136 397 292 621 171 Hop . | . . . . . . . . . . . . . . . . . . . . . . . . . . . . . . . . . . . . . . Pick Up 250 | 1 11 4 1 1 19 13 10 . 9 4 3 10 5 7 8 10 12 1 17 5 1 4 2 4 32 8 . 12 2 . . 1 12 4 6 7 4 Fast Attach 146 | 5 2 1 . . 6 1 1 4 3 1 2 1 4 4 1 4 2 3 14 10 1 5 3 2 17 11 4 7 . 1 . . 8 . 6 9 3 Attach 140 | . 1 . . . 8 6 1 2 2 2 1 6 3 6 3 6 1 5 1 1 1 2 10 4 7 5 . 19 5 1 . . 8 . 3 7 13 Detach 42 | . . 1 . . . . 1 1 . 1 . . 1 . . . . . 3 1 . 1 7 1 6 . 3 6 . 1 . . 5 . . 3 . Swap 355 | . 11 1 2 4 25 17 18 24 9 12 18 15 26 15 8 14 23 7 4 3 10 . . . 4 9 3 19 2 1 . 4 24 2 8 8 5 Drop 228 | . 3 4 1 1 24 9 13 3 12 5 6 5 4 10 6 3 5 2 9 8 2 5 2 2 12 12 7 12 2 . . . 20 2 6 9 2 Fire 1595 | 5 49 . . 1 76 47 31 46 11 24 22 42 32 29 11 50 27 42 17 14 10 . 72 9 132 60 11 138 34 19 1 16 98 . 91 237 91 Melee 239 | . 3 . . . 8 51 1 19 . 18 13 . 9 31 1 14 . 2 . 7 3 11 . . . 8 . 22 . . . 1 . 2 7 2 6 Ram . | . . . . . . . . . . . . . . . . . . . . . . . . . . . . . . . . . . . . . . Kick . | . . . . . . . . . . . . . . . . . . . . . . . . . . . . . . . . . . . . . . Crush 100 | . 1 1 . 1 6 . 3 . 3 . 3 . . . . . 1 1 . . 2 . . 72 . 3 . 3 . . . . . . . . . Escape Stasis 2 | . . . . . . . . 2 . . . . . . . . . . . . . . . . . . . . . . . . . . . . . Rewire 153 | . . . 1 . . 18 1 2 4 . . 2 . . . 31 1 . . . 2 . . . 28 3 . 2 . . . . 8 50 . . . Trap . | . . . . . . . . . . . . . . . . . . . . . . . . . . . . . . . . . . . . . . Miscellaneous 6 | . . . . . . . . . . . . . . . . . . . . . 4 . . . . . . 2 . . . . . . . . . Route ------- -11/Scrapyard -10/Materials (discovered 5 exits: *Mat x3 / *Min / Sub) -10/Mines (discovered 4 exits: *Mat x2 / *Exi / *Sub) -10/Exiles -9/Mines (discovered 2 exits: *Mat x2) -8/Materials (discovered 3 exits: *Fac x2 / Gar) -8/Garrison (discovered 3 exits: *Mat x3) -8/Materials (discovered 3 exits: *Fac x2 / Gar) -8/Garrison (discovered 3 exits: *Fac x3) -7/Factory (discovered 2 exits: *Fac / Gar) -7/Garrison (discovered 3 exits: *Fac x3) -7/Factory (discovered 2 exits: [*Sto] / Gar) -7/Garrison (discovered 3 exits: *Fac x3) -6/Factory (discovered 3 exits: [*Fac] / [*Low] / Gar) -6/Garrison -6/Factory (discovered 3 exits: [*Fac x2] / Gar) -6/Garrison -6/Factory (discovered 2 exits: [*Fac] / *Ext) -6/Extension (discovered 3 exits: [*Fac x2] / [*Cet]) -6/Cetus (discovered 2 exits: [*Fac] / [*Arc]) -6/Archives (discovered 3 exits: [*Fac] / *Hub x2) -6/Hub_04(d) -5/Factory -5/Waste -5/Factory -5/Garrison (discovered 3 exits: *Fac x3) -4/Factory (discovered 2 exits: *Res / *Upp) -4/Waste -4/Factory (discovered 4 exits: *Res x3 / *Upp) -4/Upper Caves -4/Upper Caves -4/Warlord -3/Proximity Caves -3/Research (discovered 3 exits: *Res x2 / Gar) -3/Garrison -2/Research -2/Quarantine -1/Access To Epsilon Eridani History --------- Turn | Location | Event 9 | -11/Scrapyard | Discovered new exit (range 15) 48 | -11/Scrapyard | Entered Materials 170 | -10/Materials | Discovered new exit (range 15) 314 | -10/Materials | Build established: Mutant 415 | -10/Materials | Identified exit to Mines 766 | -10/Materials | Discovered new exit (range 16) 971 | -10/Materials | Identified exit to Subcaves 1107 | -10/Materials | Identified exit to Materials 1160 | -10/Materials | Loaded intel: 23 trap records 1241 | -10/Materials | Learned Storage emergency access door positions 1285 | -10/Materials | Learned 4 Recycling zone layouts 1413 | -10/Materials | Entered Mines 1421 | -10/Mines | Assisted by bots powering up and referring to "LRC-V3" 1431 | -10/Mines | Learned Materials emergency access door positions 1519 | -10/Mines | Found DCF Scrap (14 items) 1795 | -10/Mines | Learned location of Storage (-7) 1810 | -10/Mines | Discovered exit to Subcaves (range 8) 1905 | -10/Mines | A weapon hastily lodged in a ceiling crevice suddenly fell to the ground 2095 | -10/Mines | Deemed a non-threat by the Exiles lab entrance 2095 | -10/Mines | Discovered new exit (range 5) 2137 | -10/Mines | Entered Exiles 2137 | -10/Exiles | Accompanied by 5 allies 2167 | -10/Exiles | Led the pair of lost Derelicts to a safe place 2179 | -10/Exiles | Met 8R-AWN 2207 | -10/Exiles | Met EX-HEX 2253 | -10/Exiles | Met EX-BIN 2271 | -10/Exiles | Aligned with FarCom system 2272 | -10/Exiles | Given EX-Vault access code 2309 | -10/Exiles | Opened EX-Vault 2319 | -10/Exiles | Found Gui. Plasma Cannon 2352 | -10/Exiles | Warned to stay clear of 0b10 Research branches 2396 | -10/Exiles | Met EX-DEC 2426 | -10/Exiles | Build established: Derelict-Mutant 2449 | -10/Exiles | Visited The Gauntlet 2575 | -10/Exiles | Learned location of Zion (-7) 2620 | -10/Exiles | Discovered new exit (range 12) 2637 | -10/Exiles | Left Exiles lab with Gui. Plasma Cannon 2637 | -10/Exiles | Entered Mines 2637 | -9/Mines | Accompanied by 3 allies 2638 | -9/Mines | Identified exit to Materials 2640 | -9/Mines | Received a Mining Laser from a helpful Derelict 2673 | -9/Mines | Met a Derelict bent on vengeance 2682 | -9/Mines | Assembled infested the area 2833 | -9/Mines | Entered Materials 2833 | -8/Materials | Accompanied by 3 allies 2833 | -8/Materials | Evolved 4 slots: Propulsion x1, Utility x2, Weapon x1 2834 | -8/Materials | Identified exit to Factory 3475 | -8/Materials | Discovered exit to Factory (range 14) 3475 | -8/Materials | Central database locked down 3881 | -8/Materials | Build established: Scavenger-Skirmisher 4312 | -8/Materials | Garrison activated, responded to threat 4473 | -8/Materials | Learned Storage trap positions 4532 | -8/Materials | Identified exit to Garrison 4532 | -8/Materials | Entered Garrison 4678 | -8/Garrison | Triggered checkpoint 4795 | -8/Garrison | Garrison Relay disabled 4990 | -8/Garrison | Triggered checkpoint 5006 | -8/Garrison | Triggered checkpoint 5098 | -8/Garrison | Triggered checkpoint 5170 | -8/Garrison | Installed Relay Interface Framework 5275 | -8/Garrison | Core integrity fell below 50% 5303 | -8/Garrison | Lost 3 parts (2n1w) 5375 | -8/Garrison | Discovered new exit (range 12) 5390 | -8/Garrison | Triggered checkpoint 5408 | -8/Garrison | Garrison Relay disabled 5672 | -8/Garrison | Triggered checkpoint 5732 | -8/Garrison | Triggered checkpoint 5799 | -8/Garrison | Garrison Relay disabled 5806 | -8/Garrison | Triggered checkpoint 5850 | -8/Garrison | Discovered new exit (range 10) 6093 | -8/Garrison | Build established: Scavenger-Mutant 6132 | -8/Garrison | Triggered checkpoint 6141 | -8/Garrison | Discovered new exit (range 5) 6168 | -8/Garrison | Entered Materials 6168 | -8/Materials | Accompanied by 3 allies 6187 | -8/Materials | Lost 3 allies 6300 | -8/Materials | Discovered exit to Factory (range 9) 6321 | -8/Materials | Central database locked down 6424 | -8/Materials | Repaired EMP Blaster+? 6682 | -8/Materials | Build established: Scientist-Gunner 6816 | -8/Materials | Discovered exit to Factory (range 14) 7116 | -8/Materials | Identified exit to Garrison 7116 | -8/Materials | Entered Garrison 7128 | -8/Garrison | Triggered checkpoint 7181 | -8/Garrison | Rescued a captive Derelict 7214 | -8/Garrison | Garrison Relay disabled 7418 | -8/Garrison | Triggered checkpoint 7429 | -8/Garrison | Triggered checkpoint 7451 | -8/Garrison | Core integrity fell below 20% 7639 | -8/Garrison | Discovered exit to Factory (range 10) 7676 | -8/Garrison | Garrison Relay disabled 7698 | -8/Garrison | Triggered checkpoint 7722 | -8/Garrison | Garrison Relay disabled 7805 | -8/Garrison | P-60 Hacker assimilated allied Trooper 3b 7849 | -8/Garrison | Triggered checkpoint 7915 | -8/Garrison | Discovered exit to Factory (range 8) 8095 | -8/Garrison | Expanded RIF knowledge: Hotswap 8135 | -8/Garrison | Discovered exit to Factory (range 10) 8149 | -8/Garrison | Entered Factory 8149 | -7/Factory | Evolved 2 slots: Propulsion x1, Utility x1 8524 | -7/Factory | Discovered new exit (range 11) 8913 | -7/Factory | Build established: Gunner 8933 | -7/Factory | Identified exit to Garrison 8933 | -7/Factory | Entered Garrison 8933 | -7/Garrison | Accompanied by 1 ally 8997 | -7/Garrison | Garrison Relay disabled 9093 | -7/Garrison | Garrison Relay disabled 9177 | -7/Garrison | Triggered checkpoint 9199 | -7/Garrison | Triggered checkpoint 9225 | -7/Garrison | Triggered checkpoint 9227 | -7/Garrison | Triggered checkpoint 9259 | -7/Garrison | Lost 3 allies 9309 | -7/Garrison | Triggered checkpoint 9325 | -7/Garrison | Garrison Relay disabled 9358 | -7/Garrison | Discovered new exit (range 9) 9472 | -7/Garrison | Discovered new exit (range 12) 9510 | -7/Garrison | Garrison Relay disabled 9625 | -7/Garrison | Build established: Mutant 9651 | -7/Garrison | Expanded RIF knowledge: Structural Interface 9696 | -7/Garrison | Discovered new exit (range 8) 9731 | -7/Garrison | Entered Factory 9851 | -7/Factory | Discovered new exit (range 5) 10384 | -7/Factory | Noticed a derelict Sapper rigging charges 10607 | -7/Factory | Cargo convoy interrupted 10645 | -7/Factory | Identified exit to Garrison 10653 | -7/Factory | Garrison activated, responded to threat 10656 | -7/Factory | Entered Garrison 10656 | -7/Garrison | Accompanied by 3 allies 10742 | -7/Garrison | Rescued a captive Derelict 10773 | -7/Garrison | Garrison Relay disabled 10873 | -7/Garrison | Lost 3 allies 10944 | -7/Garrison | Discovered new exit (range 13) 10950 | -7/Garrison | Build established: Gunner 11038 | -7/Garrison | Triggered checkpoint 11118 | -7/Garrison | Triggered checkpoint 11139 | -7/Garrison | Garrison Relay disabled 11187 | -7/Garrison | Discovered new exit (range 10) 11266 | -7/Garrison | Triggered checkpoint 11351 | -7/Garrison | Lost 3 parts (1n2w) 11387 | -7/Garrison | Discovered new exit (range 11) 11443 | -7/Garrison | Build established: Bothacker-Gunner 11514 | -7/Garrison | Garrison Relay disabled 11614 | -7/Garrison | Triggered checkpoint 11666 | -7/Garrison | Triggered checkpoint 11710 | -7/Garrison | Expanded RIF knowledge: Patrol Navigation 11818 | -7/Garrison | Entered Factory 11818 | -6/Factory | Evolved 2 slots: Power x1, Utility x1 12199 | -6/Factory | Repaired Lgt. Quantum Reactor 12487 | -6/Factory | Discovered new exit (range 15) 12555 | -6/Factory | Discovered new exit (range 6) 12593 | -6/Factory | Cargo convoy interrupted 12657 | -6/Factory | Lost 5 parts (2p2n1w) 12662 | -6/Factory | Destroyed 8 combat bots 12713 | -6/Factory | Identified exit to Garrison 12723 | -6/Factory | Entered Garrison 12783 | -6/Garrison | Triggered checkpoint 13047 | -6/Garrison | Triggered checkpoint 13060 | -6/Garrison | Triggered checkpoint 13185 | -6/Garrison | Triggered checkpoint 13206 | -6/Garrison | Garrison Relay disabled 13276 | -6/Garrison | Expanded RIF knowledge: Threat Obfuscation 13291 | -6/Garrison | Spotted B-75 Beast 13305 | -6/Garrison | Discovered new exit (range 10) 13320 | -6/Garrison | Entered Factory 13513 | -6/Factory | Build established: Bothacker-Mutant 13531 | -6/Factory | Discovered new exit (range 8) 13566 | -6/Factory | Identified exit to Garrison 13615 | -6/Factory | Assimilated ARC 5a with formatsys_deep 13663 | -6/Factory | Discovered new exit (range 4) 13855 | -6/Factory | Entered Garrison 13855 | -6/Garrison | Accompanied by 1 ally 13941 | -6/Garrison | Triggered checkpoint 13951 | -6/Garrison | Triggered checkpoint 14123 | -6/Garrison | Build established: Bothacker-Tank 14163 | -6/Garrison | Triggered checkpoint 14189 | -6/Garrison | Discovered new exit (range 3) 14237 | -6/Garrison | Triggered checkpoint 14260 | -6/Garrison | Garrison Relay disabled 14338 | -6/Garrison | Lost 6 allies 14412 | -6/Garrison | Expanded RIF knowledge: Autooverride 14452 | -6/Garrison | Garrison Relay disabled 14579 | -6/Garrison | Triggered checkpoint 14588 | -6/Garrison | Garrison Relay disabled 14752 | -6/Garrison | Entered Factory 14936 | -6/Factory | Repaired Imp. Heavy Treads 14988 | -6/Factory | Repaired Lgt. Angular Momentum Engine? 14995 | -6/Factory | Build established: Botlord-Mutant 15147 | -6/Factory | Core integrity fell below 50% 15325 | -6/Factory | Build established: Botlord-Tank 15393 | -6/Factory | Spotted B-75 Beast 15429 | -6/Factory | Rewired B-75 Beast 15520 | -6/Factory | Discovered new exit (range 12) 15891 | -6/Factory | Discovered new exit (range 15) 15916 | -6/Factory | Entered Extension 15916 | -6/Extension | Accompanied by 1 ally 15944 | -6/Extension | Energy Cycler disabled 15944 | -6/Extension | Rescued a captive Derelict 15945 | -6/Extension | Build established: Botlord-Gunner 15945 | -6/Extension | Rescued a captive Derelict 15945 | -6/Extension | Rescued a captive Derelict 15948 | -6/Extension | Rescued a captive Derelict 15952 | -6/Extension | Rescued a captive Derelict 15953 | -6/Extension | Rescued a captive Derelict 15954 | -6/Extension | Rescued a captive Derelict 15955 | -6/Extension | Rescued a captive Derelict 15959 | -6/Extension | Rescued a captive Derelict 16162 | -6/Extension | Repaired Arc Projector 16237 | -6/Extension | Spotted B-75 Beast 16269 | -6/Extension | Destroyed B-75 Beast 16274 | -6/Extension | Discovered new exit (range 15) 16291 | -6/Extension | Lost 3 allies 16293 | -6/Extension | Extracted ID and sensor layout for unrecognized location from A7's data core 16377 | -6/Extension | Lost 3 parts (3w) 16687 | -6/Extension | Discovered new exit (range 10) 16688 | -6/Extension | Discovered new exit (range 6) 16689 | -6/Extension | Lost 3 allies 16737 | -6/Extension | Build established: Bothacker-Gunner 16742 | -6/Extension | Entered Cetus 16742 | -6/Cetus | Accompanied by 2 allies 16773 | -6/Cetus | Spotted Cetus Guard 16773 | -6/Cetus | Spotted Cetus Guard 16774 | -6/Cetus | Spotted Cetus Guard 16774 | -6/Cetus | Spotted Cetus Guard 16791 | -6/Cetus | Destroyed Cetus Guard 16792 | -6/Cetus | Destroyed Cetus Guard 16799 | -6/Cetus | Destroyed Cetus Guard 16805 | -6/Cetus | Destroyed Cetus Guard 16835 | -6/Cetus | Lost 3 parts (1n2w) 16885 | -6/Cetus | System corruption reached 10% 16989 | -6/Cetus | Discovered new exit (range 15) 17028 | -6/Cetus | Spotted Cetus Guard 17028 | -6/Cetus | Spotted Cetus Guard 17033 | -6/Cetus | Spotted Cetus Guard 17036 | -6/Cetus | Destroyed Cetus Guard 17043 | -6/Cetus | Destroyed Cetus Guard 17046 | -6/Cetus | Destroyed Cetus Guard 17055 | -6/Cetus | Destroyed Cetus Guard 17066 | -6/Cetus | Discovered new exit (range 15) 17069 | -6/Cetus | Met Revision 17 17235 | -6/Cetus | Entered Archives 17363 | -6/Archives | Discovered new exit (range 16) 17396 | -6/Archives | Discovered new exit (range 15) 17480 | -6/Archives | Discovered new exit (range 16) 17705 | -6/Archives | Entered Hub_04(d) 17858 | -6/Hub_04(d) | Build established: Scavenger-Tank 17916 | -6/Hub_04(d) | Discovered new exit (range 5) 18016 | -6/Hub_04(d) | Network Hub disabled 18110 | -6/Hub_04(d) | Garrison activated, responded to threat 18119 | -6/Hub_04(d) | Spotted Lightning 18121 | -6/Hub_04(d) | Spotted Lightning 18121 | -6/Hub_04(d) | Spotted Lightning 18143 | -6/Hub_04(d) | Released all parts (10) 18144 | -6/Hub_04(d) | Core integrity fell below 20% 18171 | -6/Hub_04(d) | Entered Factory 18171 | -5/Factory | Evolved 2 slots: Propulsion x2 18173 | -5/Factory | Lost 4 parts (1p1n1u1w) 18341 | -5/Factory | Manually triggered Chute Trap 18341 | -5/Factory | Sucked down chute 18341 | -5/Factory | Entered Waste 18356 | -5/Waste | EMP discharged 18356 | -5/Waste | Spotted C-40 Crusher 18381 | -5/Waste | Spotted C-40 Crusher 18381 | -5/Waste | Crushed by Compactor (1 part destroyed, 1 dropped) 18431 | -5/Waste | Spotted C-40 Crusher 18439 | -5/Waste | Build established: Mutant 18442 | -5/Waste | Crushed by Compactor (1 part destroyed, 2 dropped) 18456 | -5/Waste | EMP discharged 18456 | -5/Waste | System corruption reached 10% 18462 | -5/Waste | Spotted C-40 Crusher 18463 | -5/Waste | Destroyed C-40 Crusher 18471 | -5/Waste | Destroyed C-40 Crusher 18471 | -5/Waste | Spotted C-40 Crusher 18521 | -5/Waste | Spotted C-40 Crusher 18522 | -5/Waste | Destroyed C-40 Crusher 18548 | -5/Waste | Found Damper Plating 18556 | -5/Waste | EMP discharged 18656 | -5/Waste | EMP discharged 18656 | -5/Waste | Discovered new exit (range 16) 18663 | -5/Waste | Entered Factory 18981 | -5/Factory | Identified exit to Garrison 19414 | -5/Factory | Build established: Scavenger-Mutant 19414 | -5/Factory | Entered Garrison 19425 | -5/Garrison | Learned Factory security intel 19656 | -5/Garrison | Triggered checkpoint 19785 | -5/Garrison | Lost 3 parts (2n1w) 19828 | -5/Garrison | Triggered checkpoint 19842 | -5/Garrison | Spotted B-75 Beast 19863 | -5/Garrison | Garrison Relay disabled 19921 | -5/Garrison | Discovered new exit (range 7) 19956 | -5/Garrison | Garrison Relay disabled 19958 | -5/Garrison | Triggered checkpoint 20208 | -5/Garrison | Triggered checkpoint 20229 | -5/Garrison | Discovered new exit (range 9) 20360 | -5/Garrison | Triggered checkpoint 20415 | -5/Garrison | Expanded RIF knowledge: Zone Cloak 20440 | -5/Garrison | Triggered checkpoint 20498 | -5/Garrison | Garrison Relay disabled 20613 | -5/Garrison | Discovered new exit (range 12) 20638 | -5/Garrison | Entered Factory 20638 | -4/Factory | Accompanied by 2 allies 20638 | -4/Factory | Evolved 2 slots: Utility x2 20818 | -4/Factory | Build established: Botlord-Tank 20886 | -4/Factory | Discovered new exit (range 16) 20979 | -4/Factory | Fabricated G-47 Trooper? 21201 | -4/Factory | Discovered new exit (range 15) 21219 | -4/Factory | Found Quantum Capacitor 21477 | -4/Factory | P-70 Sage assimilated allied Trooper 7a 21676 | -4/Factory | Fabricated Enh. Nova Cannon (x2) 21707 | -4/Factory | Build established: Bothacker-Mutant 21747 | -4/Factory | Fabricated M-28 Smith (x1) 21807 | -4/Factory | Fabricated G-47 Trooper? 21869 | -4/Factory | Fabricated G-47 Trooper? 21948 | -4/Factory | Sucked down chute 21948 | -4/Factory | Entered Waste 21963 | -4/Waste | EMP discharged 21963 | -4/Waste | System corruption reached 10% 21967 | -4/Waste | Spotted C-40 Crusher 21978 | -4/Waste | Spotted C-40 Crusher 21982 | -4/Waste | Spotted C-40 Crusher 21997 | -4/Waste | Destroyed C-40 Crusher 22014 | -4/Waste | Allies destroyed C-40 Crusher 22019 | -4/Waste | Found Damper Plating 22031 | -4/Waste | Spotted C-40 Crusher 22042 | -4/Waste | Spotted C-40 Crusher 22043 | -4/Waste | Allies destroyed C-40 Crusher 22056 | -4/Waste | Allies destroyed C-40 Crusher 22063 | -4/Waste | 8 allies followed down the chute 22063 | -4/Waste | EMP discharged 22076 | -4/Waste | Spotted C-40 Crusher 22163 | -4/Waste | EMP discharged 22212 | -4/Waste | Discovered new exit (range 11) 22213 | -4/Waste | Build established: Scavenger-Mutant 22263 | -4/Waste | EMP discharged 22287 | -4/Waste | Entered Factory 22287 | -4/Factory | Accompanied by 4 allies 22754 | -4/Factory | Build established: Commander-Tank 22879 | -4/Factory | Discovered new exit (range 5) 22960 | -4/Factory | Fabricated P-60 Hacker (x2) 22993 | -4/Factory | Fabricated G-47 Trooper (x3) 23013 | -4/Factory | Fabricated G-47 Trooper (x3) 23062 | -4/Factory | Fabricated G-47 Trooper? 23158 | -4/Factory | Fabricated P-60 Hacker (x2) 23178 | -4/Factory | Fabricated G-47 Trooper (x3) 23198 | -4/Factory | Fabricated G-47 Trooper (x3) 23221 | -4/Factory | Fabricated P-60 Hacker? 23257 | -4/Factory | Build established: Commander-Mutant 23267 | -4/Factory | Spotted B-86 Titan 23280 | -4/Factory | Allies destroyed B-86 Titan 23304 | -4/Factory | Central database locked down 23305 | -4/Factory | Lost 3 allies 23342 | -4/Factory | Found Quantum Capacitor 23524 | -4/Factory | Hacker 7e assimilated hostile G-67 Veteran 23532 | -4/Factory | P-70 Sage assimilated allied Trooper 7*28 23614 | -4/Factory | Lost 14 allies 23889 | -4/Factory | Build established: Mutant 24082 | -4/Factory | Discovered new exit (range 16) 24111 | -4/Factory | Discovered new exit (range 15) 24492 | -4/Factory | Discovered new exit (range 8) 24501 | -4/Factory | Identified exit to Research 24685 | -4/Factory | Identified exit to Upper Caves 24787 | -4/Factory | First assault squad dispatched 24887 | -4/Factory | Entered Upper Caves 24889 | -4/Upper Caves | Attracted the attention of an 0b10 checkpoint 24933 | -4/Upper Caves | Spotted B-86 Titan 25263 | -4/Upper Caves | Destroyed B-86 Titan 25292 | -4/Upper Caves | Lost 5 parts (2n2u1w) 25426 | -4/Upper Caves | Learned Research stockpile data 25545 | -4/Upper Caves | Discovered new exit (range 12) 25567 | -4/Upper Caves | Learned Research terminal intel 25587 | -4/Upper Caves | Entered another Upper Caves area 25617 | -4/Upper Caves | Encountered a Warlord checkpoint 25966 | -4/Upper Caves | Spotted B-86 Titan 25989 | -4/Upper Caves | Discovered new exit (range 11) 26007 | -4/Upper Caves | Entered Warlord 26064 | -4/Warlord | System corruption cleaned by Quarantine Array 26204 | -4/Warlord | Discovered new exit (range 14) 26760 | -4/Warlord | Entered Proximity Caves 26809 | -3/Proximity Caves | Discovered exit to Research (range 14) 26852 | -3/Proximity Caves | Entered Research 26852 | -3/Research | Evolved 2 slots: Power x1, Utility x1 26854 | -3/Research | Loaded intel: 23 terminal locations 26887 | -3/Research | Identified exit to Garrison 26957 | -3/Research | Fabricated M-28 Smith (x1) 27052 | -3/Research | Revision forces began assault on 0b10 27128 | -3/Research | Met up with Revision 17++ 27254 | -3/Research | Found Quantum Capacitor 27279 | -3/Research | Build established: Scavenger-Tank 27402 | -3/Research | Spotted B-86 Titan 27403 | -3/Research | Destroyed B-86 Titan 27429 | -3/Research | Found Unknown Protection 27429 | -3/Research | Identified Hvy. Reflective Plating 27552 | -3/Research | Research terminal network offline 27572 | -3/Research | Fabricated M-28 Smith (x1) 27844 | -3/Research | Discovered new exit (range 13) 27958 | -3/Research | Lost 6 allies 28191 | -3/Research | Discovered new exit (range 9) 28205 | -3/Research | Identified exit to Research 28399 | -3/Research | Lost 4 allies 28712 | -3/Research | Found Prototype Device 28712 | -3/Research | Identified Adv. EM Shield 29032 | -3/Research | Identified exit to Garrison 29032 | -3/Research | Entered Garrison 29032 | -3/Garrison | Discovered recently destroyed garrison 29032 | -3/Garrison | Accompanied by 1 ally 29278 | -3/Garrison | Garrison Relay disabled 29410 | -3/Garrison | Garrison Relay disabled 29550 | -3/Garrison | Build established: Commander-Mutant 29663 | -3/Garrison | Expanded RIF knowledge: Command Fork 29697 | -3/Garrison | Discovered exit to Research (range 9) 29765 | -3/Garrison | Entered Research 29765 | -2/Research | Accompanied by 5 allies 29765 | -2/Research | Evolved 2 slots: Power x1, Utility x1 30065 | -2/Research | Build established: Generator-Mutant 30251 | -2/Research | Spotted B-90 Cyclops 30274 | -2/Research | Destroyed B-90 Cyclops 30375 | -2/Research | Fabricated M-28 Smith? 30407 | -2/Research | Discovered new exit (range 6) 30499 | -2/Research | Entered Quarantine 30499 | -2/Quarantine | Accompanied by 1 ally 30500 | -2/Quarantine | Maximum security lockdown engaged 30513 | -2/Quarantine | Found Alien Artifact 30518 | -2/Quarantine | Found Alien Artifact 30521 | -2/Quarantine | Found Alien Artifact 30521 | -2/Quarantine | Identified Hpw. Transdimensional Reconstructor (x2) 30521 | -2/Quarantine | Warped through subspace 30708 | -2/Quarantine | Cryocooling Duct disabled 30709 | -2/Quarantine | Cryocooling Duct disabled 30723 | -2/Quarantine | Ambient heat levels rising (+20) 30724 | -2/Quarantine | Ambient heat levels rising (+20) 30782 | -2/Quarantine | Spotted Striker 30798 | -2/Quarantine | Destroyed Striker 30951 | -2/Quarantine | Spotted Executioner 30969 | -2/Quarantine | Destroyed Executioner 31176 | -2/Quarantine | Destroyed 9 combat bots 31608 | -2/Quarantine | Found Alien Reactor 31715 | -2/Quarantine | System corruption reached 10% 31851 | -2/Quarantine | Discovered new exit (range 11) 31875 | -2/Quarantine | Entered Access 31875 | -1/Access | Evolved 2 slots: Utility x2 31891 | -1/Access | Lost 4 parts (1p1n2u) 31944 | -1/Access | Lost 3 parts (1p2u) 31970 | -1/Access | High security lockdown imminent 31975 | -1/Access | Warped through subspace 32050 | -1/Access | High security lockdown engaged 32131 | -1/Access | Identified Matter Drive 32140 | -1/Access | Discovered new exit (range 5) 32171 | -1/Access | Build established: Generator-Tank 32311 | -1/Access | Destroyed 9 combat bots 32477 | -1/Access | Lost 5 parts (1p2n2u) 32531 | -1/Access | System corruption reached 10% 32556 | -1/Access | Destroyed 8 combat bots 32567 | *** | Escaped! Last Messages --------------- 32535_ L-61 Swordsman destroyed. 32536_ Enh. Nova Cannon destroyed. 32552_ P-80 Master suffers critical hit (Smash). 32552_ Destroyed Adv. Heat Sink. 32552_ P-80 Master system corrupted by crushing effect. 32554_ P-80 Master misfires. 32555_ Destroyed Mic. Antimatter Reactor. 32555_ P-80 Master system corrupted by crushing effect. 32560_ 9HUM KTZP%PQO C63W,S6STUOFWAZYX&7VI4D 32561_ Hvy. Treads+ destroyed. 32562_ C-45 Heavy ARC bursts open, deploying its payload. 32562_ G-73 Enforcer unfolds itself. 32562_ M-36 Artificer unfolds itself. 32564_ P-80 Master resets P-80 Master, system corruption cleaned. 32566_ Com. Battery destroyed. [Achievement: Slow And Deadly Wins The Race] Map ----- +----------------------------------------------------+ | ?????# # ???#?????????????????????? | | ???### #??????????????????????????? | | ?????# #??????????????????????????? | | ?????# #?????? ???????????????????? | | ?????####"#############? ? ??????????????????????? | | ???#??#?## ##??????? #?????????????????????? | | ?????????# #????#? ?????#??????????????????? | | ?????????# ##???? ???#??? ????????????????? | | ????#??#?# #?###? ? ?? ????????????????????? | | ????????## #????#??????#?#?##??????????????? | | ?? ??????# ##?? ?? ?????#?#?? ????????????? | | ???#????# #??????? ?? ???????????????????? | | ??????#??# ##?? ????? #???#??????????????? | | ??? #????# #????? ? ????#? ?????????????? | | ?????#???#[ #?# ???? ?BB?#??????????????????? | | ?? ?#?####%[= ! #?#? ?? ?BB?????? ??? ?????????? | | ? ???## %*%|%= #?????? ?? ??????? ?????????????? | | ??????# %/= = ???????????"???????????????????? | | ? ? ### #% %%=*[ #?""?????"????????##???????????? | | ????### %#% [[%% ! #""???"??????#?##??##?????????? | | ? ??#?# =#![=!=[=/= """"""""""#??????????????????? | | ??? ??#?%#% h=[%/ /* #???#??#???????????? | | ? ?#?# #h=%[%#%=!%=g"""""" ##?????????????????? | | ?????# =h / !=gg"g "? ??##???????????????? | | ???? !%[ ### #%bgggp "?????#?#?#???????????? | | ??? * " ##??####=b"p"@ "???#??????#??????????? | | ?????? #??????#?# "i "?????????????????????? | | ???#??###???##?????# """""" ????????????????????? | | ??#?????#???##????## ?? ??#?##?#????#????????? | | ???#??##???#???????# ?? ?? ?????? ?????????????? | | ?????#???##??#?#???"""""????????#??? ????????????? | | ????????#?#?##?????????? ? ??#??????????????????? | | ???????##????#???????"????? ????? ???????????????? | | ????#???????????#?#?"? ? ???? ??????"????????????? | | ????#????#?#????????T?????? ?????????????????????? | | ??????#?#???????????"????? ?????? ???????????????? | | ???????#????###??###?"???????????? ??????????????? | | ???????????????????????? ??i?????#???????????????? | | ???????????? ? ??????C?? ????????h?h????????????? | | ???????????? ? ?????w? ? ???????????????????????? | | ?????????????????#?#?????###?????????????????????? | | ????????????????????##???????????????????????????? | | ????????????????????#????????????????????????????? | | ?????????????????????????????????????????????????? | | ?????????????????????????????????????????????????? | | ?????????????????????????????????????????????????? | | ?????????????????????????????????????????????????? | | ?????????????????????????????????????????????????? | | ?????????????????????????????????????????????????? | | ?????????????????????????????????????????????????? | +----------------------------------------------------+ Best States ------------- Heat Dissipation 166 Coolant Potential 100 Energy Generation 73 Energy Capacity 1625 Matter Stores 300 Matter Capacity 300 Sight Range 16 Terrain Scan Range 20 Terrain Scan Density 10 Additional Mass Support 9 Base Temperature (-) 200 EM Shielding 3 Armor Coverage 1600 Resistance: TH 25 Resistance: EM 90 Propulsion Shielding 66 Phase Shifting 15 Evasion (%) 55 Targeting Accuracy 16 Launcher Accuracy 40 Target Analysis 6 Recoil Reduction 10 Matter Filtering 30 Energy Filtering 45 Particle Charging 25 Offensive Hacking 12 Relay Coupler Types 2 Relay Coupler Value 54 Authchip Count 16 Item Schematics ----------------- Hvy. Armor Plating | -8/Materials | Scanalyzed Cld. Plasma Cannon | -6/Factory | Scanalyzed Particle Charger | -6/Factory | Extracted Adv. Cooling System | -6/Factory | Hacked Adv. System Shield | -6/Extension | Hacked Lgt. Antimatter Reactor | -6/Extension | Hacked HERF Cannon | -6/Hub_04(d) | Hacked Imp. Heavy Treads | -4/Factory | Scanalyzed Lgt. Quantum Reactor | -4/Factory | Hacked Robot Schematics ------------------ M-28 Smith | -6/Factory | Downloaded G-47 Trooper | -6/Extension | Hacked P-60 Hacker | -4/Factory | Hacked Fabricated ------------ G-47 Trooper | x3 | -4/Factory | Authchip Enh. Nova Cannon | x2 | -4/Factory | Preloaded M-28 Smith | x1 | -4/Factory | Authchip G-47 Trooper | x3 | -4/Factory | Authchip G-47 Trooper | x3 | -4/Factory | Authchip P-60 Hacker | x2 | -4/Factory | Authchip G-47 Trooper | x3 | -4/Factory | Authchip G-47 Trooper | x3 | -4/Factory | Authchip G-47 Trooper | x3 | -4/Factory | Authchip P-60 Hacker | x2 | -4/Factory | Authchip G-47 Trooper | x3 | -4/Factory | Authchip G-47 Trooper | x3 | -4/Factory | Authchip P-60 Hacker | x2 | -4/Factory | Authchip M-28 Smith | x1 | -3/Research M-28 Smith | x1 | -3/Research M-28 Smith | x1 | -2/Research Repaired ---------- EMP Blaster | 21% | -8/Materials Lgt. Quantum Reactor | 11% | -6/Factory Imp. Heavy Treads | 34% | -6/Factory Lgt. Angular Momentum Engine | 11% | -6/Factory Arc Projector | 26% | -6/Extension Studied --------- Lgt. Treads | -8/Materials | Hacked Particle Gun | -8/Materials | Hacked Adv. Treads | -8/Materials | Hacked Arm. Treads | -8/Materials | Hacked Lgt. Nuclear Core | -8/Materials | Hacked EMP Blaster | -8/Materials | Hacked Hvy. Treads | -6/Factory | Hacked Imp. Heavy Treads | -4/Factory | Hacked Alien Tech Used ----------------- High-powered Transdimensional Reconstructor Matter Drive Achievements -------------- Deep Understanding My Business Is Booming Shocking Conclusion Slow And Deadly Wins The Race Tank Life Challenges ------------ None Game ------ Seed DisassembledAutogunWell Manual? 0 Play Time 05:52:33 Cumulative 698.9 hours Start 2025.11.22 @ 17:21:29 End 2025.11.23 @ 20:10:03 Sessions 5 Manual Loads 0 Difficulty Rogue Special Mode None Game No. 299 Rogue 299 Adventurer 0 Explorer 0 Win Type 0 Total 72 Types 38/4/11/5/6/1/1/3/0/3 Lore% 96 Gallery% 89 Achievement% 80 Wizard Run 0 Options --------- Layout 1 ASCII 0 Keyboard 0 Movement Numpad Keybinds 0 Fullscreen 1 Font 24/Smallcaps Map View 50x35 Zoom Use 0% Tactical HUD 1 Map Filters NONE Filters NONE Steam 1 RUN: 16486d9c-be12-45b8-9892-c6335c55a416